Workbook

Sheet MENU
A6: C1
A7: =LEFT(C7,4) -> 
A10: C5. | C10: C5. ELECTORES POR PAÍS DE ORIGEN
C25: Observaciones al
C26: correo electrónico: dejecutiva@tse.go.cr
A27: =LEFT(C27,4) -> 

Sheet 1
A1: CUADRO 1
A2: COSTA RICA: TOTAL Y VARIACIÓN DEL ELECTORADO
A3: ENTRE DICIEMBRE 2010 Y DICIEMBRE 2013
A4: SEGÚN PROVINCIA Y SEXO
A6: Provincia y sexo | B6: Padrón Nacional Electoral | E6: Variación
B7: Diciembre 2010 | C7: Diciembre 2013 | E7: Absoluto | F7: Porcentaje
A9: Costa Rica | B9: =B13+B17+B21+B25+B29+B33+B37+B41 -> 2866217 | C9: =C13+C17+C21+C25+C29+C33+C37+C41 -> 3078321 | E9: =C9-B9 -> 212104 | F9: =E9/B9*100 -> 7.400137533
A10: Hombres | B10: 1430857 | C10: 1535869 | E10: =C10-B10 -> 105012 | F10: =E10/B10*100 -> 7.339098177
A11: Mujeres | B11: 1435360 | C11: 1542452 | E11: =C11-B11 -> 107092 | F11: =E11/B11*100 -> 7.460985397
A13: San José | B13: =SUM(B14:B15) -> 1016678 | C13: =+C14+C15 -> 1063061 | E13: =C13-B13 -> 46383 | F13: =E13/B13*100 -> 4.562211438
A14: Hombres | B14: 495505 | C14: 518312 | E14: =C14-B14 -> 22807 | F14: =E14/B14*100 -> 4.602778983
A15: Mujeres | B15: 521173 | C15: 544749 | E15: =C15-B15 -> 23576 | F15: =E15/B15*100 -> 4.523641862
A17: Alajuela | B17: =+B18+B19 -> 533285 | C17: =+C18+C19 -> 577493 | E17: =C17-B17 -> 44208 | F17: =E17/B17*100 -> 8.289751259
A18: Hombres | B18: 269128 | C18: 291277 | E18: =C18-B18 -> 22149 | F18: =E18/B18*100 -> 8.229912904
A19: Mujeres | B19: 264157 | C19: 286216 | E19: =C19-B19 -> 22059 | F19: =E19/B19*100 -> 8.350715673
A21: Cartago | B21: =+B22+B23 -> 334473 | C21: =+C22+C23 -> 359985 | E21: =C21-B21 -> 25512 | F21: =E21/B21*100 -> 7.627521504
A22: Hombres | B22: 167036 | C22: 179449 | E22: =C22-B22 -> 12413 | F22: =E22/B22*100 -> 7.431332168
A23: Mujeres | B23: 167437 | C23: 180536 | E23: =C23-B23 -> 13099 | F23: =E23/B23*100 -> 7.82324098
A25: Heredia | B25: =+B26+B27 -> 283771 | C25: =+C26+C27 -> 306901 | E25: =C25-B25 -> 23130 | F25: =E25/B25*100 -> 8.150938609
A26: Hombres | B26: 139912 | C26: 151098 | E26: =C26-B26 -> 11186 | F26: =E26/B26*100 -> 7.995025445
A27: Mujeres | B27: 143859 | C27: 155803 | E27: =C27-B27 -> 11944 | F27: =E27/B27*100 -> 8.302574048
A29: Guanacaste | B29: =+B30+B31 -> 203614 | C29: =+C30+C31 -> 221688 | E29: =C29-B29 -> 18074 | F29: =E29/B29*100 -> 8.876599841
A30: Hombres | B30: 103249 | C30: 112201 | E30: =C30-B30 -> 8952 | F30: =E30/B30*100 -> 8.670301892
A31: Mujeres | B31: 100365 | C31: 109487 | E31: =C31-B31 -> 9122 | F31: =E31/B31*100 -> 9.088825786
A33: Puntarenas | B33: =+B34+B35 -> 265197 | C33: =+C34+C35 -> 287254 | E33: =C33-B33 -> 22057 | F33: =E33/B33*100 -> 8.317213241
A34: Hombres | B34: 136989 | C34: 147881 | E34: =C34-B34 -> 10892 | F34: =E34/B34*100 -> 7.951003365
A35: Mujeres | B35: 128208 | C35: 139373 | E35: =C35-B35 -> 11165 | F35: =E35/B35*100 -> 8.708504929
A37: Limón | B37: =+B38+B39 -> 228491 | C37: =+C38+C39 -> 249285 | E37: =C37-B37 -> 20794 | F37: =E37/B37*100 -> 9.100577266
A38: Hombres | B38: 118700 | C38: 129143 | E38: =C38-B38 -> 10443 | F38: =E38/B38*100 -> 8.797809604
A39: Mujeres | B39: 109791 | C39: 120142 | E39: =C39-B39 -> 10351 | F39: =E39/B39*100 -> 9.427913035
A41: En el extranjero 1/ | B41: =+B42+B43 -> 708 | C41: =+C42+C43 -> 12654 | E41: =C41-B41 -> 11946 | F41: =E41/B41*100 -> 1687.288136
A42: Hombres | B42: 338 | C42: 6508 | E42: =C42-B42 -> 6170 | F42: =E42/B42*100 -> 1825.443787
A43: Mujeres | B43: 370 | C43: 6146 | E43: =C43-B43 -> 5776 | F43: =E43/B43*100 -> 1561.081081
A46: 1/ Costarricenses inscritos(as) que pueden ejercer el voto en extranjero para designar los puestos de Presidencia y Vicepresidencias, así como en consultas populares de orden nacional, según el artículo 187 del Código Electoral.
A48: Fuente: Sección Padrón Electoral del Tribunal Supremo de Elecciones.

Sheet 2
A1: CUADRO 2
A2: COSTA RICA: ELECTORADO EN EL PADRÓN PARA LAS ELECCIONES DE
A3: DICIEMBRE 2010 Y EN EL PADRÓN AL 31 DE DICIEMBRE DE 2013
A4: POR SEXO, SEGÚN PROVINCIA Y CANTÓN
A6: Provincia y cantón | B6: Padrón Nacional Electoral
B7: Diciembre 2010 | F7: Diciembre 2013
B8: Total | C8: Hombres | D8: Mujeres | F8: Total | G8: Hombres | H8: Mujeres
A9: Costa Rica | B9: =SUM(B10:B17) -> 2866217 | C9: =SUM(C10:C17) -> 1430857 | D9: =SUM(D10:D17) -> 1435360 | E9: =E18+E39+E55+E64+E75+E87+E99 -> 0 | F9: =F18+F39+F55+F64+F75+F87+F99+F106 -> 3078321 | G9: =G18+G39+G55+G64+G75+G87+G99+G106 -> 1535869 | H9: =H18+H39+H55+H64+H75+H87+H99+H106 -> 1542452
A10: San José | B10: =B18 -> 1016678 | C10: 495505 | D10: 521173 | E10: 0 | F10: 1063061 | G10: 518312 | H10: 544749
A11: Alajuela | B11: =B39 -> 533285 | C11: 269128 | D11: 264157 | E11: 0 | F11: 577493 | G11: 291277 | H11: 286216
A12: Cartago | B12: =B55 -> 334473 | C12: 167036 | D12: 167437 | E12: 0 | F12: 359985 | G12: 179449 | H12: 180536
A13: Heredia | B13: =B64 -> 283771 | C13: 139912 | D13: 143859 | E13: 0 | F13: 306901 | G13: 151098 | H13: 155803
A14: Guanacaste | B14: =B75 -> 203614 | C14: 103249 | D14: 100365 | E14: 0 | F14: 221688 | G14: 112201 | H14: 109487
A15: Puntarenas | B15: =B87 -> 265197 | C15: 136989 | D15: 128208 | E15: 0 | F15: 287254 | G15: 147881 | H15: 139373
A16: Limón | B16: =B99 -> 228491 | C16: 118700 | D16: 109791 | E16: 0 | F16: 249285 | G16: 129143 | H16: 120142
A17: En el extranjero 1/ | B17: =B106 -> 708 | C17: =C106 -> 338 | D17: =D106 -> 370 | F17: =F106 -> 12654 | G17: =G106 -> 6508 | H17: =H106 -> 6146
A18: San José | B18: =SUM(C18:D18) -> 1016678 | C18: =SUM(C19:C38) -> 495505 | D18: =SUM(D19:D38) -> 521173 | F18: =SUM(F19:F38) -> 1063061 | G18: =SUM(G19:G38) -> 518312 | H18: =SUM(H19:H38) -> 544749
A19: San José | B19: =+C19+D19 -> 225542 | C19: 108215 | D19: 117327 | F19: =SUM(G19:H19) -> 228847 | G19: 110114 | H19: 118733
A20: Escazú | B20: 40526 | C20: 19736 | D20: 20790 | F20: 43354 | G20: 21195 | H20: 22159
A21: Desamparados | B21: 144901 | C21: 71011 | D21: 73890 | F21: 152242 | G21: 74550 | H21: 77692
A22: Puriscal | B22: 24663 | C22: 12429 | D22: 12234 | F22: 26459 | G22: 13322 | H22: 13137
A23: Tarrazú | B23: 10616 | C23: 5449 | D23: 5167 | F23: 11458 | G23: 5814 | H23: 5644
A24: Aserrí | B24: 37616 | C24: 18801 | D24: 18815 | F24: 40321 | G24: 20123 | H24: 20198
A25: Mora | B25: 17413 | C25: 8641 | D25: 8772 | F25: 19190 | G25: 9521 | H25: 9669
A26: Goicoechea | B26: 85797 | C26: 41130 | D26: 44667 | F26: 87701 | G26: 41925 | H26: 45776
A27: Santa Ana | B27: 27941 | C27: 13729 | D27: 14212 | F27: 31041 | G27: 15246 | H27: 15795
A28: Alajuelita | B28: 44907 | C28: 22315 | D28: 22592 | F28: 47597 | G28: 23554 | H28: 24043
A29: Vázquez de Coronado | B29: 45831 | C29: 22200 | D29: 23631 | F29: 49673 | G29: 24016 | H29: 25657
A30: Acosta | B30: 14354 | C30: 7482 | D30: 6872 | F30: 15551 | G30: 8044 | H30: 7507
A31: Tibás | B31: 55315 | C31: 26064 | D31: 29251 | F31: 55540 | G31: 26143 | H31: 29397
A32: Moravia | B32: 40392 | C32: 19306 | D32: 21086 | F32: 42357 | G32: 20301 | H32: 22056
A33: Montes de Oca | B33: 41135 | C33: 19190 | D33: 21945 | F33: 41489 | G33: 19500 | H33: 21989
A34: Turrubares | B34: 4187 | C34: 2195 | D34: 1992 | F34: 4375 | G34: 2280 | H34: 2095
A35: Dota | B35: 4836 | C35: 2437 | D35: 2399 | F35: 5193 | G35: 2610 | H35: 2583
A36: Curridabat | B36: 44286 | C36: 21313 | D36: 22973 | F36: 46270 | G36: 22273 | H36: 23997
A37: Pérez Zeledón | B37: 98271 | C37: 49699 | D37: 48572 | F37: 105670 | G37: 53322 | H37: 52348
A38: León Cortés | B38: 8149 | C38: 4163 | D38: 3986 | F38: 8733 | G38: 4459 | H38: 4274
A39: Alajuela | B39: =SUM(B40:B54) -> 533285 | C39: =SUM(C40:C54) -> 269128 | D39: =SUM(D40:D54) -> 264157 | F39: 577493 | G39: =SUM(G40:G54) -> 291277 | H39: =SUM(H40:H54) -> 286216
A40: Alajuela | B40: =+C40+D40 -> 173149 | C40: 87161 | D40: 85988 | F40: 185688 | G40: 93494 | H40: 92194
A41: San Ramón | B41: 53851 | C41: 26770 | D41: 27081 | F41: 58067 | G41: 28929 | H41: 29138
A42: Grecia | B42: 50974 | C42: 25480 | D42: 25494 | F42: 55007 | G42: 27426 | H42: 27581
A43: San Mateo | B43: 3822 | C43: 1984 | D43: 1838 | F43: 4044 | G43: 2100 | H43: 1944
A44: Atenas | B44: 17658 | C44: 8873 | D44: 8785 | F44: 18923 | G44: 9486 | H44: 9437
A45: Naranjo | B45: 28029 | C45: 13921 | D45: 14108 | F45: 29894 | G45: 14815 | H45: 15079
A46: Palmares | B46: 25315 | C46: 12541 | D46: 12774 | F46: 27132 | G46: 13436 | H46: 13696
A47: Poás | B47: 18233 | C47: 9174 | D47: 9059 | F47: 19747 | G47: 9940 | H47: 9807
A48: Orotina | B48: 12953 | C48: 6479 | D48: 6474 | F48: 14116 | G48: 7035 | H48: 7081
A49: San Carlos | B49: 88519 | C49: 45250 | D49: 43269 | F49: 97702 | G49: 49938 | H49: 47764
A50: Zarcero | B50: 7973 | C50: 3999 | D50: 3974 | F50: 8490 | G50: 4259 | H50: 4231
A51: Valverde Vega | B51: 12819 | C51: 6382 | D51: 6437 | F51: 13710 | G51: 6818 | H51: 6892
A52: Upala | B52: 21797 | C52: 11432 | D52: 10365 | F52: 24597 | G52: 12821 | H52: 11776
A53: Los Chiles | B53: 9243 | C53: 4991 | D53: 4252 | F53: 10457 | G53: 5621 | H53: 4836
A54: Guatuso | B54: 8950 | C54: 4691 | D54: 4259 | F54: 9919 | G54: 5159 | H54: 4760
A55: Cartago | B55: =SUM(B56:B63) -> 334473 | C55: =SUM(C56:C63) -> 167036 | D55: =SUM(D56:D63) -> 167437 | F55: 359985 | G55: =SUM(G56:G63) -> 179449 | H55: =SUM(H56:H63) -> 180536
A56: Cartago | B56: =+C56+D56 -> 106013 | C56: 52424 | D56: 53589 | F56: 113463 | G56: 56296 | H56: 57167
A57: Paraíso | B57: 39836 | C57: 19941 | D57: 19895 | F57: 43000 | G57: 21389 | H57: 21611
A58: La Unión | B58: 59152 | C58: 29511 | D58: 29641 | F58: 64441 | G58: 31956 | H58: 32485
A59: Jiménez | B59: 10600 | C59: 5498 | D59: 5102 | F59: 11308 | G59: 5836 | H59: 5472
A60: Turrialba | B60: 51904 | C60: 26079 | D60: 25825 | F60: 54654 | G60: 27475 | H60: 27179
A61: Alvarado | B61: 8697 | C61: 4396 | D61: 4301 | F61: 9484 | G61: 4788 | H61: 4696
A62: Oreamuno | B62: 30700 | C62: 15159 | D62: 15541 | F62: 33361 | G62: 16365 | H62: 16996
A63: El Guarco | B63: 27571 | C63: 14028 | D63: 13543 | F63: 30274 | G63: 15344 | H63: 14930
A64: Heredia | B64: =SUM(B65:B74) -> 283771 | C64: =SUM(C65:C74) -> 139912 | D64: =SUM(D65:D74) -> 143859 | F64: =SUM(G64:H64) -> 306901 | G64: =SUM(G65:G74) -> 151098 | H64: =SUM(H65:H74) -> 155803
A65: Heredia | B65: =+C65+D65 -> 85356 | C65: 40946 | D65: 44410 | F65: 90600 | G65: 43399 | H65: 47201
A66: Barva | B66: 27552 | C66: 13533 | D66: 14019 | F66: 30088 | G66: 14747 | H66: 15341
A67: Santo Domingo | B67: 30722 | C67: 15184 | D67: 15538 | F67: 32559 | G67: 16038 | H67: 16521
A68: Santa Bárbara | B68: 22788 | C68: 11356 | D68: 11432 | F68: 24726 | G68: 12278 | H68: 12448
A69: San Rafael | B69: 29538 | C69: 14634 | D69: 14904 | F69: 32186 | G69: 15986 | H69: 16200
A70: San Isidro | B70: 13112 | C70: 6576 | D70: 6536 | F70: 14503 | G70: 7235 | H70: 7268
A71: Belén | B71: 15982 | C71: 7880 | D71: 8102 | F71: 17266 | G71: 8510 | H71: 8756
A72: Flores | B72: 13761 | C72: 6731 | D72: 7030 | F72: 15087 | G72: 7390 | H72: 7697
A73: San Pablo | B73: 18343 | C73: 8855 | D73: 9488 | F73: 20119 | G73: 9754 | H73: 10365
A74: Sarapiquí | B74: 26617 | C74: 14217 | D74: 12400 | F74: 29767 | G74: 15761 | H74: 14006
A75: Guanacaste | B75: =SUM(B76:B86) -> 203614 | C75: =SUM(C76:C86) -> 103249 | D75: =SUM(D76:D86) -> 100365 | F75: 221688 | G75: =SUM(G76:G86) -> 112201 | H75: =SUM(H76:H86) -> 109487
A76: Liberia | B76: =+C76+D76 -> 37797 | C76: 18911 | D76: 18886 | F76: 41245 | G76: 20723 | H76: 20522
A77: Nicoya | B77: 35669 | C77: 18012 | D77: 17657 | F77: 38300 | G77: 19245 | H77: 19055
A78: Santa Cruz | B78: 34567 | C78: 17669 | D78: 16898 | F78: 37832 | G78: 19323 | H78: 18509
A79: Bagaces | B79: 11245 | C79: 5717 | D79: 5528 | F79: 12446 | G79: 6320 | H79: 6126
A80: Carrillo | B80: 20050 | C80: 10219 | D80: 9831 | F80: 22180 | G80: 11268 | H80: 10912
A81: Cañas | B81: 17344 | C81: 8696 | D81: 8648 | F81: 18440 | G81: 9272 | H81: 9168
A82: Abangares | B82: 11763 | C82: 6040 | D82: 5723 | F82: 12801 | G82: 6492 | H82: 6309
A83: Tilarán | B83: 13309 | C83: 6702 | D83: 6607 | F83: 14132 | G83: 7079 | H83: 7053
A84: Nandayure | B84: 7489 | C84: 3909 | D84: 3580 | F84: 7979 | G84: 4134 | H84: 3845
A85: La Cruz | B85: 9262 | C85: 4732 | D85: 4530 | F85: 10846 | G85: 5518 | H85: 5328
A86: Hojancha | B86: 5119 | C86: 2642 | D86: 2477 | F86: 5487 | G86: 2827 | H86: 2660
A87: Puntarenas | B87: =SUM(B88:B98) -> 265197 | C87: =SUM(C88:C98) -> 136989 | D87: =SUM(D88:D98) -> 128208 | F87: 287254 | G87: =SUM(G88:G98) -> 147881 | H87: =SUM(H88:H98) -> 139373
A88: Puntarenas | B88: =+C88+D88 -> 77238 | C88: 39656 | D88: 37582 | F88: 82240 | G88: 42269 | H88: 39971
A89: Esparza | B89: 18825 | C89: 9370 | D89: 9455 | F89: 20599 | G89: 10214 | H89: 10385
A90: Buenos Aires | B90: 27392 | C90: 14450 | D90: 12942 | F90: 29985 | G90: 15711 | H90: 14274
A91: Montes de Oro | B91: 8750 | C91: 4337 | D91: 4413 | F91: 9616 | G91: 4807 | H91: 4809
A92: Osa | B92: 18664 | C92: 9964 | D92: 8700 | F92: 20090 | G92: 10649 | H92: 9441
A93: Aguirre | B93: 16693 | C93: 8909 | D93: 7784 | F93: 18025 | G93: 9561 | H93: 8464
A94: Golfito | B94: 25019 | C94: 13054 | D94: 11965 | F94: 27210 | G94: 14223 | H94: 12987
A95: Coto Brus | B95: 26188 | C95: 13291 | D95: 12897 | F95: 27667 | G95: 13980 | H95: 13687
A96: Parrita | B96: 9776 | C96: 5118 | D96: 4658 | F96: 10844 | G96: 5604 | H96: 5240
A97: Corredores | B97: 27936 | C97: 14168 | D97: 13768 | F97: 31122 | G97: 15640 | H97: 15482
A98: Garabito | B98: 8716 | C98: 4672 | D98: 4044 | F98: 9856 | G98: 5223 | H98: 4633
A99: Limón | B99: =SUM(B100:B105) -> 228491 | C99: =SUM(C100:C105) -> 118700 | D99: =SUM(D100:D105) -> 109791 | F99: 249285 | G99: =SUM(G100:G105) -> 129143 | H99: =SUM(H100:H105) -> 120142
A100: Limón | B100: =+C100+D100 -> 61603 | C100: 31186 | D100: 30417 | F100: 64961 | G100: 32762 | H100: 32199
A101: Pococí | B101: 75016 | C101: 39302 | D101: 35714 | F101: 83344 | G101: 43586 | H101: 39758
A102: Siquirres | B102: 34544 | C102: 18170 | D102: 16374 | F102: 37389 | G102: 19658 | H102: 17731
A103: Talamanca | B103: 15458 | C103: 8212 | D103: 7246 | F103: 17572 | G103: 9254 | H103: 8318
A104: Matina | B104: 18313 | C104: 9640 | D104: 8673 | F104: 19837 | G104: 10370 | H104: 9467
A105: Guácimo | B105: 23557 | C105: 12190 | D105: 11367 | F105: 26182 | G105: 13513 | H105: 12669
A106: En el extranjero 1/ | B106: =SUM(C106:D106) -> 708 | C106: 338 | D106: 370 | F106: =SUM(G106:H106) -> 12654 | G106: 6508 | H106: 6146
A109: 1/ Costarricenses inscritos(as) que pueden ejercer el voto en extranjero para designar los puestos de Presidencia y Vicepresidencias, así como en consultas populares de orden nacional, según el artículo 187 del Código Electoral.
A110: Fuente: Sección Padrón Electoral del Tribunal Supremo de Elecciones.

Sheet 3
A1: CUADRO 3
A2: COSTA RICA: ELECTORADO POR PROVINCIA, SEGÚN SEXO Y
A3: GRUPO DE EDAD, AL 31 DE DICIEMBRE DE 2013
A5: Sexo y grupo de edad | B5: Total | C5: San José | D5: Alajuela | E5: Cartago | F5: Heredia | G5: Guanacaste | H5: Puntarenas | I5: Limón | J5: En el extranjero 1/
A7: Costa Rica | B7: =B24+B41 -> 3078321 | C7: 1063061 | D7: 577493 | E7: 359985 | F7: 306901 | G7: 221688 | H7: 287254 | I7: 249285 | J7: 12654
A8: 18 - 19 | B8: 135379 | C8: =C25+C42 -> 42575 | D8: 26423 | E8: 15959 | F8: 12794 | G8: 10289 | H8: 13848 | I8: 13061 | J8: 430
A9: 20 - 24 | B9: 393474 | C9: 127701 | D9: 76070 | E9: 46980 | F9: 37077 | G9: 29304 | H9: 39029 | I9: 36115 | J9: 1198
A10: 25 - 29 | B10: 395586 | C10: 132436 | D10: 75881 | E10: 46873 | F10: 38319 | G10: 28317 | H10: 37957 | I10: 34457 | J10: 1346
A11: 30 - 34 | B11: 344546 | C11: 119622 | D11: 63037 | E11: 39963 | F11: 35692 | G11: 24539 | H11: 32085 | I11: 27695 | J11: 1913
A12: 35 - 39 | B12: 294124 | C12: 100001 | D12: 53380 | E12: 34929 | F12: 30854 | G12: 21161 | H12: 27876 | I12: 24194 | J12: 1729
A13: 40 - 44 | B13: 270443 | C13: 90282 | D13: 50257 | E13: 32927 | F13: 27384 | G13: 19269 | H13: 25751 | I13: 23071 | J13: 1502
A14: 45 - 49 | B14: 277377 | C14: 94228 | D14: 52961 | E14: 33486 | F14: 27869 | G14: 19681 | H14: 25777 | I14: 21999 | J14: 1376
A15: 50 - 54 | B15: 258002 | C15: 91247 | D15: 48938 | E15: 29902 | F15: 26237 | G15: 17905 | H15: 23010 | I15: 19600 | J15: 1163
A16: 55 - 59 | B16: 210940 | C16: 76736 | D16: 38639 | E16: 24046 | F16: 21735 | G16: 14591 | H16: 18572 | I16: 15831 | J16: 790
A17: 60 - 64 | B17: 158619 | C17: 59115 | D17: 28599 | E17: 17459 | F17: 16311 | G17: 11088 | H17: 13908 | I17: 11593 | J17: 546
A18: 65 - 69 | B18: 115370 | C18: 43579 | D18: 21235 | E18: 12618 | F18: 11402 | G18: 8284 | H18: 9997 | I18: 7953 | J18: 302
A19: 70 - 74 | B19: 83696 | C19: 30915 | D19: 16050 | E19: 9537 | F19: 8005 | G19: 6084 | H19: 7465 | I19: 5473 | J19: 167
A20: 75 - 79 | B20: 61429 | C20: 23260 | D20: 11502 | E20: 6886 | F20: 5726 | G20: 4701 | H20: 5397 | I20: 3863 | J20: 94
A21: 80 - 84 | B21: 41597 | C21: 16316 | D21: 7620 | E21: 4543 | F21: 3933 | G21: 3281 | H21: 3557 | I21: 2286 | J21: 61
A22: 85 y más | B22: 37739 | C22: 15048 | D22: 6901 | E22: 3877 | F22: 3563 | G22: 3194 | H22: 3025 | I22: 2094 | J22: 37
A24: Hombres | B24: =SUM(C24:J24) -> 1535869 | C24: =SUM(C25:C39) -> 518312 | D24: 291277 | E24: 179449 | F24: 151098 | G24: 112201 | H24: 147881 | I24: 129143 | J24: =SUM(J25:J39) -> 6508
A25: 18 - 19 | B25: =SUM(C25:J25) -> 68524 | C25: 21467 | D25: 13329 | E25: 8092 | F25: 6508 | G25: 5225 | H25: 7072 | I25: 6623 | J25: 208
A26: 20 - 24 | B26: =SUM(C26:J26) -> 201403 | C26: 64932 | D26: 39394 | E26: 24138 | F26: 19037 | G26: 14899 | H26: 19881 | I26: 18537 | J26: 585
A27: 25 - 29 | B27: 201483 | C27: 66987 | D27: 39205 | E27: 23958 | F27: 19313 | G27: 14412 | H27: 19357 | I27: 17484 | J27: 767
A28: 30 - 34 | B28: 174584 | C28: 60395 | D28: 32317 | E28: 20230 | F28: 17891 | G28: 12456 | H28: 16341 | I28: 13902 | J28: 1052
A29: 35 - 39 | B29: 148152 | C29: 50260 | D29: 27086 | E29: 17465 | F29: 15457 | G29: 10586 | H29: 14078 | I29: 12278 | J29: 942
A30: 40 - 44 | B30: 135486 | C30: 44791 | D30: 25146 | E30: 16175 | F30: 13652 | G30: 9754 | H30: 13246 | I30: 11924 | J30: 798
A31: 45 - 49 | B31: 138526 | C31: 46340 | D31: 26431 | E31: 16666 | F31: 13601 | G31: 10001 | H31: 13325 | I31: 11436 | J31: 726
A32: 50 - 54 | B32: 127994 | C32: 43948 | D32: 24474 | E32: 14776 | F32: 12794 | G32: 9137 | H32: 11978 | I32: 10309 | J32: 578
A33: 55 - 59 | B33: 103809 | C33: 36224 | D33: 19362 | E33: 11858 | F33: 10443 | G33: 7421 | H33: 9670 | I33: 8490 | J33: 341
A34: 60 - 64 | B34: 77258 | C34: 27196 | D34: 14316 | E34: 8418 | F34: 7732 | G34: 5670 | H34: 7303 | I34: 6373 | J34: 250
A35: 65 - 69 | B35: 55802 | C35: 19990 | D35: 10370 | E35: 6117 | F35: 5401 | G35: 4064 | H35: 5349 | I35: 4376 | J35: 135
A36: 70 - 74 | B36: 39954 | C36: 13825 | D36: 7807 | E36: 4586 | F36: 3640 | G36: 3078 | H36: 3910 | I36: 3041 | J36: 67
A37: 75 - 79 | B37: 28569 | C37: 9850 | D37: 5486 | E37: 3242 | F37: 2577 | G37: 2385 | H37: 2908 | I37: 2090 | J37: 31
A38: 80 - 84 | B38: 18613 | C38: 6639 | D38: 3513 | E38: 2121 | F38: 1667 | G38: 1591 | H38: 1841 | I38: 1224 | J38: 17
A39: 85 y más | B39: 15712 | C39: 5468 | D39: 3041 | E39: 1607 | F39: 1385 | G39: 1522 | H39: 1622 | I39: 1056 | J39: 11
A41: Mujeres | B41: =SUM(C41:J41) -> 1542452 | C41: =SUM(C42:C56) -> 544749 | D41: =SUM(D42:D56) -> 286216 | E41: 180536 | F41: 155803 | G41: 109487 | H41: 139373 | I41: 120142 | J41: =SUM(J42:J56) -> 6146
A42: 18 - 19 | B42: =SUM(C42:J42) -> 66855 | C42: 21108 | D42: 13094 | E42: 7867 | F42: 6286 | G42: 5064 | H42: 6776 | I42: 6438 | J42: 222
A43: 20 - 24 | B43: =SUM(C43:J43) -> 192071 | C43: 62769 | D43: 36676 | E43: 22842 | F43: 18040 | G43: 14405 | H43: 19148 | I43: 17578 | J43: 613
A44: 25 - 29 | B44: 194103 | C44: 65449 | D44: 36676 | E44: 22915 | F44: 19006 | G44: 13905 | H44: 18600 | I44: 16973 | J44: 579
A45: 30 - 34 | B45: 169962 | C45: 59227 | D45: 30720 | E45: 19733 | F45: 17801 | G45: 12083 | H45: 15744 | I45: 13793 | J45: 861
A46: 35 - 39 | B46: 145972 | C46: 49741 | D46: 26294 | E46: 17464 | F46: 15397 | G46: 10575 | H46: 13798 | I46: 11916 | J46: 787
A47: 40 - 44 | B47: 134957 | C47: 45491 | D47: 25111 | E47: 16752 | F47: 13732 | G47: 9515 | H47: 12505 | I47: 11147 | J47: 704
A48: 45 - 49 | B48: 138851 | C48: 47888 | D48: 26530 | E48: 16820 | F48: 14268 | G48: 9680 | H48: 12452 | I48: 10563 | J48: 650
A49: 50 - 54 | B49: 130008 | C49: 47299 | D49: 24464 | E49: 15126 | F49: 13443 | G49: 8768 | H49: 11032 | I49: 9291 | J49: 585
A50: 55 - 59 | B50: =SUM(C50:J50) -> 107131 | C50: 40512 | D50: 19277 | E50: 12188 | F50: 11292 | G50: 7170 | H50: 8902 | I50: 7341 | J50: 449
A51: 60 - 64 | B51: 81361 | C51: 31919 | D51: 14283 | E51: 9041 | F51: 8579 | G51: 5418 | H51: 6605 | I51: 5220 | J51: 296
A52: 65 - 69 | B52: 59568 | C52: 23589 | D52: 10865 | E52: 6501 | F52: 6001 | G52: 4220 | H52: 4648 | I52: 3577 | J52: 167
A53: 70 - 74 | B53: 43742 | C53: 17090 | D53: 8243 | E53: 4951 | F53: 4365 | G53: 3006 | H53: 3555 | I53: 2432 | J53: 100
A54: 75 - 79 | B54: 32860 | C54: 13410 | D54: 6016 | E54: 3644 | F54: 3149 | G54: 2316 | H54: 2489 | I54: 1773 | J54: 63
A55: 80 - 84 | B55: 22984 | C55: 9677 | D55: 4107 | E55: 2422 | F55: 2266 | G55: 1690 | H55: 1716 | I55: 1062 | J55: 44
A56: 85 y más | B56: =SUM(C56:J56) -> 22027 | C56: 9580 | D56: 3860 | E56: 2270 | F56: 2178 | G56: 1672 | H56: 1403 | I56: 1038 | J56: 26
A59: 1/ Costarricenses inscritos(as) que pueden ejercer el voto en extranjero para designar los puestos de Presidencia y Vicepresidencias, así como en consultas populares de orden nacional, según el artículo 187 del Código Electoral.
A60: Fuente: Sección Padrón Electoral del Tribunal Supremo de Elecciones.

Sheet G1
I2: GRÁFICO 1
A3: POR MES, SEGÚN PROVINCIA Y SEXO, AL 30 DE SETIEMBRE DE 2013 | I3: COSTA RICA: PORCENTAJE DEL ELECTORADO, POR SEXO Y GRUPO DE EDAD
I4: AL 31 DE DICIEMBRE DE 2013
A6: GRUPOS DE EDAD | B6: ELECTORES | F6: PORCENTAJE
B7: Total | C7: Hombres | D7: Mujeres | E7: Sin lugar | F7: Hombres | G7: Mujeres
B9: =SUM(B11:B25) -> 3078321 | C9: =SUM(C11:C25) -> 1535869 | D9: =SUM(D11:D25) -> 1542452
A11: Menos de 20 | B11: =SUM(C11:D11) -> 135379 | C11: ='3'!B25 -> 68524 | D11: ='3'!B42 -> 66855 | F11: =(C11/($C$9))*-100 -> -4.461578429 | G11: =(D11/($C$9))*100 -> 4.352910307
A12: 20 a 24 | B12: =SUM(C12:D12) -> 393474 | C12: ='3'!B26 -> 201403 | D12: ='3'!B43 -> 192071 | F12: =(C12/($C$9))*-100 -> -13.11329287 | G12: =(D12/($C$9))*100 -> 12.50568896
A13: 25 a 29 | B13: 395586 | C13: ='3'!B27 -> 201483 | D13: ='3'!B44 -> 194103 | F13: =(C13/($C$9))*-100 -> -13.11850164 | G13: 12.63799191
A14: 30 a 34 | B14: 344546 | C14: ='3'!B28 -> 174584 | D14: ='3'!B45 -> 169962 | F14: -11.36711529 | G14: 11.06617817
A15: 35 a 39 | B15: 294124 | C15: ='3'!B29 -> 148152 | D15: ='3'!B46 -> 145972 | F15: -9.646135185 | G15: 9.504195996
A16: 40 a 44 | B16: 270443 | C16: ='3'!B30 -> 135486 | D16: ='3'!B47 -> 134957 | F16: -8.821455476 | G16: 8.787012434
A17: 45 a 49 | B17: 277377 | C17: ='3'!B31 -> 138526 | D17: ='3'!B48 -> 138851 | F17: -9.019389023 | G17: 9.040549682
A18: 50 a 54 | B18: 258002 | C18: ='3'!B32 -> 127994 | D18: ='3'!B49 -> 130008 | F18: -8.333653456 | G18: 8.464784431
A19: 55 a 59 | B19: 210940 | C19: ='3'!B33 -> 103809 | D19: ='3'!B50 -> 107131 | F19: -6.758974887 | G19: 6.975269375
A20: 60 a 64 | B20: 158619 | C20: ='3'!B34 -> 77258 | D20: ='3'!B51 -> 81361 | F20: -5.03024672 | G20: 5.2973919
A21: 65 a 69 | B21: 115370 | C21: ='3'!B35 -> 55802 | D21: ='3'!B52 -> 59568 | F21: -3.633252576 | G21: 3.87845578
A22: 70 a 74 | B22: 83696 | C22: ='3'!B36 -> 39954 | D22: ='3'!B53 -> 43742 | F22: -2.601393739 | G22: 2.848029357
A23: 75 a 79 | B23: 61429 | C23: ='3'!B37 -> 28569 | D23: ='3'!B54 -> 32860 | F23: -1.860119581 | G23: 2.139505388
A24: 80 a 84 | B24: 41597 | C24: ='3'!B38 -> 18613 | D24: ='3'!B55 -> 22984 | F24: -1.211887212 | G24: 1.496481796
A25: 85 y más | B25: 37739 | C25: ='3'!B39 -> 15712 | D25: ='3'!B56 -> 22027 | F25: -1.023003915 | G25: 1.434171795
A28: Al pasar a imprenta y web, se debe pegar como valores para
A29: romper el vinculo con la tabla de datos
I31: Fuente: Cuadro 3.

Sheet 4
A1: CUADRO 4
A2: COSTA RICA: ELECTORADO EN EL PADRÓN INSCRITO EN EL EXTRANJERO1/
A3: POR SEXO, SEGÚN CONTINENTE Y PAÍS
A4: AL 31 DE DICIEMBRE 2013
A6: Continente y país | B6: Total | D6: Hombres | F6: Mujeres
B7: Absoluto | C7: % | D7: Absoluto | E7: Sin lugar | F7: Absoluto | G7: %
A9: Total | B9: =B11+B35+B48+B57 -> 12654 | C9: =B9/B$9*100 -> 100 | D9: =D11+D35+D48+D57 -> 6508 | E9: =D9/D$9*100 -> 100 | F9: =F11+F35+F48+F57 -> 6146 | G9: =F9/F$9*100 -> 100
A11: América | B11: =D11+F11 -> 10991 | C11: =B11/B$9*100 -> 86.85791054 | D11: =SUM(D12:D33) -> 5730 | E11: =D11/D$9*100 -> 88.04548248 | F11: =SUM(F12:F33) -> 5261 | G11: =F11/F$9*100 -> 85.6003905
A12: Estados Unidos | B12: 8316 | C12: 65.71834993 | D12: 4439 | E12: 68.20835894 | F12: 3877 | G12: 63.08167914
A13: Canadá | B13: 484 | C13: 3.824877509 | D13: 263 | E13: 4.041180086 | F13: 221 | G13: 3.595834689
A14: México | B14: 418 | C14: 3.303303303 | D14: 172 | E14: 2.642901045 | F14: 246 | G14: 4.002603319
A15: Guatemala | B15: 227 | C15: 1.793899162 | D15: 95 | E15: 1.459741856 | F15: 132 | G15: 2.147738366
A16: Panamá | B16: 212 | C16: 1.67535957 | D16: 108 | E16: 1.659496005 | F16: 104 | G16: 1.692157501
A17: El Salvador | B17: 169 | C17: 1.335546072 | D17: 71 | E17: 1.090964966 | F17: 98 | G17: 1.59453303
A18: Venezuela | B18: 162 | C18: 1.280227596 | D18: 65 | E18: 0.9987707437 | F18: 97 | G18: 1.578262284
A19: Honduras | B19: 146 | C19: 1.153785364 | D19: 79 | E19: 1.213890596 | F19: 67 | G19: 1.090139928
A20: Colombia | B20: 138 | C20: 1.090564248 | D20: 61 | E20: 0.9373079287 | F20: 77 | G20: 1.25284738
A21: Nicaragua | B21: 130 | C21: 1.027343133 | D21: 62 | E21: 0.9526736325 | F21: 68 | G21: 1.106410674
A22: Argentina | B22: 128 | C22: 1.011537854 | D22: 71 | E22: 1.090964966 | F22: 57 | G22: 0.9274324764
A23: Chile | B23: 115 | C23: 0.9088035404 | D23: 61 | E23: 0.9373079287 | F23: 54 | G23: 0.8786202408
A24: Perú | B24: 89 | C24: 0.7033349139 | D24: 48 | E24: 0.73755378 | F24: 41 | G24: 0.6671005532
A25: República Dominicana | B25: 83 | C25: 0.655919077 | D25: 44 | E25: 0.676090965 | F25: 39 | G25: 0.6345590628
A26: Ecuador | B26: 47 | C26: 0.3714240556 | D26: 22 | E26: 0.3380454825 | F26: 25 | G26: 0.40676863
A27: Brasil | B27: 33 | C27: 0.2607871029 | D27: 20 | E27: 0.307314075 | F27: 13 | G27: 0.2115196876
A28: Cuba | B28: 31 | C28: 0.2449818239 | D28: 20 | E28: 0.307314075 | F28: 11 | G28: 0.1789781972
A29: Bolivia | B29: 31 | C29: 0.2449818239 | D29: 14 | E29: 0.2151198525 | F29: 17 | G29: 0.2766026684
A30: Uruguay | B30: 15 | C30: 0.1185395922 | D30: 8 | E30: 0.12292563 | F30: 7 | G30: 0.1138952164
A31: Paraguay | B31: 10 | C31: 0.07902639482 | D31: 5 | E31: 0.07682851875 | F31: 5 | G31: 0.081353726
A32: Trinidad y Tobago | B32: 4 | C32: 0.03161055793 | D32: 2 | E32: 0.0307314075 | F32: 2 | G32: 0.0325414904
A33: Belice | B33: 3 | C33: 0.02370791844 | D33: 0 | E33: 0 | F33: 3 | G33: 0.0488122356
A35: Europa | B35: =D35+F35 -> 1382 | C35: =B35/B$9*100 -> 10.92144776 | D35: =SUM(D36:D46) -> 644 | E35: =D35/D$9*100 -> 9.895513215 | F35: =SUM(F36:F46) -> 738 | G35: =F35/F$9*100 -> 12.00780996
A36: España | B36: 368 | C36: 2.908171329 | D36: 197 | E36: 3.027043639 | F36: 171 | G36: 2.782297429
A37: Francia | B37: 191 | C37: 1.509404141 | D37: 78 | E37: 1.198524892 | F37: 113 | G37: 1.838594208
A38: Alemania | B38: 166 | C38: 1.311838154 | D38: 97 | E38: 1.490473264 | F38: 69 | G38: 1.122681419
A39: Suiza | B39: 162 | C39: 1.280227596 | D39: 56 | E39: 0.86047941 | F39: 106 | G39: 1.724698991
A40: Italia | B40: 114 | C40: 0.9009009009 | D40: 43 | E40: 0.6607252612 | F40: 71 | G40: 1.155222909
A41: Reino Unido | B41: 111 | C41: 0.8771929825 | D41: 44 | E41: 0.676090965 | F41: 67 | G41: 1.090139928
A42: Holanda | B42: 100 | C42: 0.7902639482 | D42: 42 | E42: 0.6453595575 | F42: 58 | G42: 0.9437032216
A43: Bélgica | B43: 53 | C43: 0.4188398925 | D43: 26 | E43: 0.3995082975 | F43: 27 | G43: 0.4393101204
A44: Austria | B44: 51 | C44: 0.4030346136 | D44: 24 | E44: 0.36877689 | F44: 27 | G44: 0.4393101204
A45: Noruega | B45: 40 | C45: 0.3161055793 | D45: 20 | E45: 0.307314075 | F45: 20 | G45: 0.325414904
A46: Rusia | B46: 26 | C46: 0.2054686265 | D46: 17 | E46: 0.2612169637 | F46: 9 | G46: 0.1464367068
A48: Asia | B48: =D48+F48 -> 225 | C48: =B48/B$9*100 -> 1.778093883 | D48: =SUM(D49:D55) -> 106 | E48: =D48/D$9*100 -> 1.628764597 | F48: =SUM(F49:F55) -> 119 | G48: =F48/F$9*100 -> 1.936218679
A49: China | B49: 71 | C49: 0.5610874032 | D49: 36 | E49: 0.553165335 | F49: 35 | G49: 0.569476082
A50: Israel | B50: 41 | C50: 0.3240082187 | D50: 14 | E50: 0.2151198525 | F50: 27 | G50: 0.4393101204
A51: Japón | B51: 39 | C51: 0.3082029398 | D51: 17 | E51: 0.2612169637 | F51: 22 | G51: 0.3579563944
A52: Singapur | B52: 28 | C52: 0.2212739055 | D52: 14 | E52: 0.2151198525 | F52: 14 | G52: 0.2277904328
A53: Corea | B53: 21 | C53: 0.1659554291 | D53: 11 | E53: 0.1690227412 | F53: 10 | G53: 0.162707452
A54: Qatar | B54: 19 | C54: 0.1501501502 | D54: 8 | E54: 0.12292563 | F54: 11 | G54: 0.1789781972
A55: India | B55: 6 | C55: 0.04741583689 | D55: 6 | E55: 0.0921942225 | F55: 0 | G55: 0
A57: Oceanía | B57: =D57+F57 -> 56 | C57: =B57/B$9*100 -> 0.442547811 | D57: =SUM(D58) -> 28 | E57: =D57/D$9*100 -> 0.430239705 | F57: =SUM(F58) -> 28 | G57: =F57/F$9*100 -> 0.4555808656
A58: Australia | B58: =D58+F58 -> 56 | C58: =B58/B$9*100 -> 0.442547811 | D58: 28 | E58: =D58/D$9*100 -> 0.430239705 | F58: 28 | G58: =F58/F$9*100 -> 0.4555808656
A61: 1/ Costarricenses inscritos(as) que pueden ejercer el voto en extranjero para designar los puestos de Presidencia y Vicepresidencias, así como en consultas populares de orden nacional, según el artículo 187 del Código Electoral.
A62: Fuente: Sección Padrón Electoral del Tribunal Supremo de Elecciones.

Sheet 5
A1: CUADRO 5
A2: COSTA RICA: ELECTORADO NATURALIZADO, POR PAÍS DE ORIGEN
A3: SEGÚN SEXO Y GRUPO DE EDAD, AL 31 DE DICIEMBRE DE 2013 1/
A5: SEXO Y GRUPO DE EDAD | B5: País de origen
B6: Total | C6: Nicaragua | D6: Colombia | E6: El Salvador | F6: Cuba | G6: China | H6: Perú | I6: Panamá | J6: Resto de países
A8: Costa Rica | B8: =SUM(B9:B23) -> 49963 | C8: =SUM(C9:C23) -> 25046 | D8: 5788 | E8: 3476 | F8: 2252 | G8: 1855 | H8: 1574 | I8: 1428 | J8: =SUM(J9:J23) -> 8544
A9: 18 - 19 | B9: =SUM(C9:J9) -> 266 | C9: =+C26+C43 -> 79 | D9: =+D26+D43 -> 106 | E9: 3 | F9: 17 | G9: 9 | H9: 8 | I9: 0 | J9: 44
A10: 20 - 24 | B10: =SUM(C10:J10) -> 917 | C10: =+C27+C44 -> 352 | D10: 274 | E10: 15 | F10: 93 | G10: 18 | H10: 29 | I10: 5 | J10: 131
A11: 25 - 29 | B11: 1756 | C11: 928 | D11: 324 | E11: 19 | F11: 82 | G11: 81 | H11: 60 | I11: 17 | J11: 245
A12: 30 - 34 | B12: 4035 | C12: 2142 | D12: 746 | E12: 154 | F12: 122 | G12: 162 | H12: 137 | I12: 31 | J12: 541
A13: 35 - 39 | B13: 5646 | C13: 2845 | D13: 935 | E13: 370 | F13: 231 | G13: 208 | H13: 204 | I13: 67 | J13: 786
A14: 40 - 44 | B14: 6401 | C14: 3176 | D14: 861 | E14: 466 | F14: 288 | G14: 256 | H14: 208 | I14: 168 | J14: 978
A15: 45 - 49 | B15: 6383 | C15: 3099 | D15: 840 | E15: 436 | F15: 327 | G15: 201 | H15: 203 | I15: 193 | J15: 1084
A16: 50 - 54 | B16: 5311 | C16: 2415 | D16: 642 | E16: 445 | F16: 295 | G16: 168 | H16: 213 | I16: 192 | J16: 941
A17: 55 - 59 | B17: 4586 | C17: 2141 | D17: 407 | E17: 480 | F17: 220 | G17: 164 | H17: 180 | I17: 173 | J17: 821
A18: 60 - 64 | B18: 3975 | C18: 1807 | D18: 266 | E18: 403 | F18: 167 | G18: 180 | H18: 143 | I18: 158 | J18: 851
A19: 65 - 69 | B19: 3179 | C19: 1542 | D19: 174 | E19: 290 | F19: 138 | G19: 130 | H19: 93 | I19: 155 | J19: 657
A20: 70 - 74 | B20: 2335 | C20: 1250 | D20: 91 | E20: 168 | F20: 97 | G20: 97 | H20: 39 | I20: 83 | J20: 510
A21: 75 - 79 | B21: 1973 | C21: 1169 | D21: 64 | E21: 114 | F21: 60 | G21: 68 | H21: 30 | I21: 66 | J21: 402
A22: 80 - 84 | B22: 1546 | C22: 954 | D22: 32 | E22: 72 | F22: 51 | G22: 65 | H22: 14 | I22: 71 | J22: 287
A23: 85 y más | B23: 1654 | C23: 1147 | D23: 26 | E23: 41 | F23: 64 | G23: 48 | H23: 13 | I23: 49 | J23: 266
A25: Hombres | B25: =SUM(B26:B40) -> 22833 | C25: =SUM(C26:C40) -> 10690 | D25: =SUM(D26:D40) -> 2745 | E25: 1504 | F25: 1235 | G25: 995 | H25: 862 | I25: 626 | J25: 4176
A26: 18 - 19 | B26: =SUM(C26:J26) -> 141 | C26: 41 | D26: 56 | E26: 0 | F26: 12 | G26: 7 | H26: 4 | I26: 0 | J26: 21
A27: 20 - 24 | B27: =SUM(C27:J27) -> 461 | C27: 163 | D27: 148 | E27: 8 | F27: 56 | G27: 6 | H27: 14 | I27: 2 | J27: 64
A28: 25 - 29 | B28: 722 | C28: 341 | D28: 150 | E28: 10 | F28: 34 | G28: 46 | H28: 27 | I28: 5 | J28: 109
A29: 30 - 34 | B29: 1675 | C29: 801 | D29: 340 | E29: 76 | F29: 50 | G29: 107 | H29: 78 | I29: 10 | J29: 213
A30: 35 - 39 | B30: 2413 | C30: 1148 | D30: 394 | E30: 160 | F30: 116 | G30: 117 | H30: 105 | I30: 30 | J30: 343
A31: 40 - 44 | B31: 2984 | C31: 1431 | D31: 429 | E31: 219 | F31: 154 | G31: 146 | H31: 99 | I31: 76 | J31: 430
A32: 45 - 49 | B32: 2987 | C32: 1411 | D32: 395 | E32: 186 | F32: 191 | G32: 89 | H32: 102 | I32: 86 | J32: 527
A33: 50 - 54 | B33: 2331 | C33: 923 | D33: 323 | E33: 190 | F33: 173 | G33: 87 | H33: 115 | I33: 81 | J33: 439
A34: 55 - 59 | B34: 1904 | C34: 749 | D34: 171 | E34: 171 | F34: 133 | G34: 93 | H34: 102 | I34: 77 | J34: 408
A35: 60 - 64 | B35: 1842 | C35: 749 | D35: 127 | E35: 163 | F35: 102 | G35: 98 | H35: 85 | I35: 56 | J35: 462
A36: 65 - 69 | B36: 1628 | C36: 718 | D36: 104 | E36: 131 | F36: 85 | G36: 66 | H36: 68 | I36: 71 | J36: 385
A37: 70 - 74 | B37: 1202 | C37: 632 | D37: 46 | E37: 84 | F37: 50 | G37: 40 | H37: 28 | I37: 40 | J37: 282
A38: 75 - 79 | B38: 964 | C38: 537 | D38: 39 | E38: 57 | F38: 33 | G38: 35 | H38: 18 | I38: 37 | J38: 208
A39: 80 - 84 | B39: 756 | C39: 457 | D39: 12 | E39: 35 | F39: 19 | G39: 37 | H39: 10 | I39: 29 | J39: 157
A40: 85 y más | B40: 823 | C40: 589 | D40: 11 | E40: 14 | F40: 27 | G40: 21 | H40: 7 | I40: 26 | J40: 128
A42: Mujeres | B42: =SUM(B43:B57) -> 27130 | C42: 14356 | D42: 3043 | E42: 1972 | F42: 1017 | G42: 860 | H42: 712 | I42: 802 | J42: 4368
A43: 18 - 19 | B43: =SUM(C43:J43) -> 125 | C43: 38 | D43: 50 | E43: 3 | F43: 5 | G43: 2 | H43: 4 | I43: 0 | J43: 23
A44: 20 - 24 | B44: 456 | C44: 189 | D44: 126 | E44: 7 | F44: 37 | G44: 12 | H44: 15 | I44: 3 | J44: 67
A45: 25 - 29 | B45: 1034 | C45: 587 | D45: 174 | E45: 9 | F45: 48 | G45: 35 | H45: 33 | I45: 12 | J45: 136
A46: 30 - 34 | B46: 2360 | C46: 1341 | D46: 406 | E46: 78 | F46: 72 | G46: 55 | H46: 59 | I46: 21 | J46: 328
A47: 35 - 39 | B47: 3233 | C47: 1697 | D47: 541 | E47: 210 | F47: 115 | G47: 91 | H47: 99 | I47: 37 | J47: 443
A48: 40 - 44 | B48: 3417 | C48: 1745 | D48: 432 | E48: 247 | F48: 134 | G48: 110 | H48: 109 | I48: 92 | J48: 548
A49: 45 - 49 | B49: 3396 | C49: 1688 | D49: 445 | E49: 250 | F49: 136 | G49: 112 | H49: 101 | I49: 107 | J49: 557
A50: 50 - 54 | B50: 2980 | C50: 1492 | D50: 319 | E50: 255 | F50: 122 | G50: 81 | H50: 98 | I50: 111 | J50: 502
A51: 55 - 59 | B51: 2682 | C51: 1392 | D51: 236 | E51: 309 | F51: 87 | G51: 71 | H51: 78 | I51: 96 | J51: 413
A52: 60 - 64 | B52: 2133 | C52: 1058 | D52: 139 | E52: 240 | F52: 65 | G52: 82 | H52: 58 | I52: 102 | J52: 389
A53: 65 - 69 | B53: 1551 | C53: 824 | D53: 70 | E53: 159 | F53: 53 | G53: 64 | H53: 25 | I53: 84 | J53: 272
A54: 70 - 74 | B54: 1133 | C54: 618 | D54: 45 | E54: 84 | F54: 47 | G54: 57 | H54: 11 | I54: 43 | J54: 228
A55: 75 - 79 | B55: 1009 | C55: 632 | D55: 25 | E55: 57 | F55: 27 | G55: 33 | H55: 12 | I55: 29 | J55: 194
A56: 80 - 84 | B56: 790 | C56: 497 | D56: 20 | E56: 37 | F56: 32 | G56: 28 | H56: 4 | I56: 42 | J56: 130
A57: 85 y más | B57: 831 | C57: 558 | D57: 15 | E57: 27 | F57: 37 | G57: 27 | H57: 6 | I57: 23 | J57: 138
A60: 1/ Incluye las personas menores que tramitaron su cédula y cumplirán 18 años años de edad a la fecha de la próxima elección de Presidente y Vicepresidentes de la República, según el artículo 76 de la Ley 3504: "Ley Orgánica del Tribunal Supremo de Elecciones y del Registro Civil".
A61: Fuente: Sección Padrón Electoral del Tribunal Supremo de Elecciones.

Sheet G2
A2: Costa Rica | B2: ='3'!B7 -> 3078321 | E2: GRÁFICO 2
A3: Resto de países | B3: ='5'!J8 -> 8544 | C3: =+B3/$B$11*100 -> 17.10065448 | E3: COSTA RICA: PORCENTAJE DEL ELECTORADO NATURALIZADO
A4: Panamá | B4: ='5'!I8 -> 1428 | C4: 2.858115005 | E4: POR PAÍS DE ORIGEN, AL 31 DE DICIEMBRE DE 2013
A5: Perú | B5: ='5'!H8 -> 1574 | C5: 3.150331245
A6: China | B6: ='5'!G8 -> 1855 | C6: 3.712747433
A7: Cuba | B7: ='5'!F8 -> 2252 | C7: 4.507335428
A8: El Salvador | B8: ='5'!E8 -> 3476 | C8: 6.95714829
A9: Colombia | B9: ='5'!D8 -> 5788 | C9: 11.58457258
A10: Nicaragua | B10: ='5'!C8 -> 25046 | C10: =+B10/$B$11*100 -> 50.12909553
B11: =SUM(B3:B10) -> 49963
A13: Los datos se copian del cuadro respectivo
A14: ya que el total de cada país puede variar | C14: =SUM(D14:R14) -> 0
A15: y por tanto la posición dentros del gráfico
C16: =SUM(D16:R16) -> 0
C18: =SUM(D18:R18) -> 0
C20: =SUM(D20:R20) -> 0
C22: =SUM(D22:R22) -> 0
C24: =SUM(D24:R24) -> 0
C26: =SUM(D26:R26) -> 0
C28: =SUM(D28:R28) -> 0
C30: =SUM(D30:R30) -> 0
E31: Fuente: Cuadro 5.

Sheet 6
A1: CUADRO 6
A2: COSTA RICA: MOVIMIENTOS AL PADRÓN NACIONAL ELECTORAL
A3: POR TIPO DE MOVIMIENTO, SEGÚN MES
A4: AL 31 DE DICIEMBRE DE 2013
A6: Mes | B6: Padrón Nacional Electoral anterior | D6: Tipo de movimiento | O6: Padrón Nacional Electoral actual
D7: Inclusiones | I7: Exclusiones
D8: Cédulas Primera vez1/ | F8: Cédulas renovadas | I8: Defunción | K8: Cédulas vencidas2/ | M8: Otras
A10: Enero | B10: 3003922 | D10: 9343 | F10: 6619 | I10: 1204 | K10: 6803 | M10: 11 | O10: 3011866
A11: Febrero | B11: 3011866 | D11: 6147 | F11: 4824 | I11: 2018 | K11: 320 | M11: 8 | O11: 3020491
A12: Marzo | B12: 3020491 | D12: 5492 | F12: 2707 | I12: 875 | K12: 0 | M12: 8 | O12: 3027807
A13: Abril | B13: 3027807 | D13: 7988 | F13: 3157 | I13: 1679 | K13: 0 | M13: 16 | O13: 3037257
A14: Mayo | B14: 3037257 | D14: 7183 | F14: 2292 | I14: 1434 | K14: 0 | M14: 16 | O14: 3045282
A15: Junio | B15: 3045282 | D15: 6082 | F15: 1495 | I15: 1466 | K15: 0 | M15: 7 | O15: 3051386
A16: Julio | B16: 3051386 | D16: 7951 | F16: 1596 | I16: 1308 | K16: 0 | M16: 33 | O16: 3059592
A17: Agosto | B17: 3059592 | D17: 6796 | F17: 1429 | I17: 1716 | K17: 0 | M17: 14 | O17: 3066087
A18: Setiembre | B18: 3066087 | D18: 9459 | F18: 1148 | I18: 0 | K18: 1267 | M18: 58 | O18: 3075369
A19: Octubre | B19: 3075369 | D19: 5192 | F19: 508 | I19: 2557 | K19: 0 | M19: 28 | O19: 3078484
A20: Noviembre | B20: 3078484 | D20: 7 | F20: 3 | I20: 171 | K20: 0 | M20: 2 | O20: 3078321
A21: Diciembre 3/ | B21: 3078321 | D21: 0 | F21: 0 | I21: 0 | K21: 0 | M21: 0 | O21: 3078321
A24: 1/ Incluye nuevos electores, inclusión condicional de nuevos electores y otras inclusiones.
A25: 2/ No se aplican exclusiones por caducidad durante el año anterior a una elección. (Ley Orgánica del TSE, Art. 94)
A27: 3/ No se aplican movimientos al padrón por estar cerrado para las elecciones nacionales a celebrarse en Febrero 2014.
A28: Fuente: Sección Padrón Electoral del Tribunal Supremo de Elecciones.

Sheet 7
A1: CUADRO 7
A2: COSTA RICA: SOLICITUDES DE CÉDULA RECIBIDAS, POR CLASE DE SOLICITUD
A3: SEGÚN MES, AL 31 DE DICIEMBRE DE 2013
A4: (Absoluto y Porcentaje)
A6: Mes | B6: Clase de solicitud
B7: Absoluto | F7: Porcentaje
B8: Total | C8: Primera vez | D8: Duplicado | E8: Traslado | F8: Total | G8: Primera vez | H8: Duplicado | I8: Traslado
A10: TOTAL | B10: 682661 | C10: 83290 | D10: 594235 | E10: 5136 | F10: 100 | G10: 12.20078487 | H10: 87.04686514 | I10: 0.7523499951
A12: Enero | B12: 69420 | C12: 8910 | D12: 60398 | E12: 112 | F12: 100 | G12: 12.83491789 | H12: 87.00374532 | I12: 0.1613367906
A13: Febrero | B13: 56533 | C13: 6006 | D13: 50355 | E13: 172 | F13: 100 | G13: 10.6238834 | H13: 89.07186953 | I13: 0.3042470769
A14: Marzo | B14: 44299 | C14: 5163 | D14: 39016 | E14: 120 | F14: 100 | G14: 11.65489063 | H14: 88.07422289 | I14: 0.270886476
A15: Abril | B15: 63661 | C15: 7741 | D15: 55728 | E15: 192 | F15: 100 | G15: 12.15972102 | H15: 87.53868145 | I15: 0.3015975244
A16: Mayo | B16: 58060 | C16: 7012 | D16: 50819 | E16: 229 | F16: 100 | G16: 12.07716156 | H16: 87.52841888 | I16: 0.394419566
A17: Junio | B17: 50387 | C17: 5960 | D17: 44223 | E17: 204 | F17: 100 | G17: 11.82844781 | H17: 87.76668585 | I17: 0.4048663346
A18: Julio | B18: 58921 | C18: 7692 | D18: 50946 | E18: 283 | F18: 100 | G18: 13.05476825 | H18: 86.46492761 | I18: 0.480304136
A19: Agosto | B19: 56388 | C19: 6938 | D19: 48927 | E19: 523 | F19: 100 | G19: 12.30403632 | H19: 86.76846137 | I19: 0.9275023055
A20: Setiembre | B20: 69643 | C20: 11970 | D20: 55840 | E20: 1833 | F20: 100 | G20: 17.18765705 | H20: 80.18034835 | I20: 2.631994601
A21: Octubre | B21: 62677 | C21: 7320 | D21: 53912 | E21: 1445 | F21: 100 | G21: 11.67892528 | H21: 86.01560381 | I21: 2.305470906
A22: Noviembre | B22: 51561 | C22: 4982 | D22: 46559 | E22: 20 | F22: 100 | G22: 9.662341692 | H22: 90.2988693 | I22: 0.0387890072
A23: Diciembre | B23: 41111 | C23: 3596 | D23: 37512 | E23: 3 | F23: 100 | G23: 8.747050668 | H23: 91.24565202 | I23: 0.00729731702
A26: Fuente: Sección Solicitudes Cedulares y Coordinación de Servicios Regionales del Tribunal Supremo de Elecciones.

Sheet G3
A2: GRÁFICO 3
A3: COSTA RICA: PORCENTAJE DE SOLICITUDES DE CÉDULA RECIBIDAS | J3: SOLICITUDES CEDULARES RECIBIDAS
A4: POR CLASE DE SOLICITUD, AL 31 DE DICIEMBRE DE 2013 | J4: TOTAL | K4: 682661
J5: Duplicado | K5: 594235 | L5: 87.04686514
J6: Primera vez | K6: 83290 | L6: 12.20078487
E7: Sin lugar | J7: Traslado | K7: 5136 | L7: 0.7523499951
A30: Fuente: Cuadro 7.

Sheet 8
A1: CUADRO 8
A2: COSTA RICA: SOLICITUDES DE CÉDULA RECIBIDAS, POR CLASE DE SOLICITUD
A3: SEGÚN PROVINCIA, AL 31 DE DICIEMBRE DE 2013
A4: (Absoluto y Porcentaje)
A6: Provincia | B6: Clase de solicitud
B7: Absoluto | F7: Porcentaje
B8: Total | C8: Primera vez | D8: Duplicado | E8: Traslado | F8: Total | G8: Primera vez | H8: Duplicado | I8: Traslado
A10: Costa Rica | B10: =SUM(C10:E10) -> 682661 | C10: =SUM(C12:C18) -> 83290 | D10: 594235 | E10: 5136 | F10: =SUM(F12:F18) -> 100 | G10: 100 | H10: 100 | I10: 100
A12: San José | B12: =SUM(C12:E12) -> 281270 | C12: 30995 | D12: 247710 | E12: 2565 | F12: =(B12/B$10*100) -> 41.20200217 | G12: =(C12/C$10*100) -> 37.21335094 | H12: =D12/D$10*100 -> 41.68552845 | I12: =E12/E$10*100 -> 49.94158879
A13: Alajuela | B13: =SUM(C13:E13) -> 112741 | C13: 15525 | D13: 96366 | E13: 850 | F13: =(B13/B$10*100) -> 16.51493201 | G13: 18.63969264 | H13: =D13/D$10*100 -> 16.21681658 | I13: 16.54984424
A14: Cartago | B14: 53218 | C14: 7886 | D14: 45035 | E14: 297 | F14: 7.795670179 | G14: 9.468123424 | H14: 7.578651544 | I14: 5.78271028
A15: Heredia | B15: 47996 | C15: 6500 | D15: 41017 | E15: 479 | F15: 7.030722423 | G15: 7.80405811 | H15: 6.902488073 | I15: =E15/E$10*100 -> 9.326323988
A16: Guanacaste | B16: 53306 | C16: 6361 | D16: 46513 | E16: 432 | F16: 7.808560911 | G16: 7.637171329 | H16: 7.827374692 | I16: 8.411214953
A17: Puntarenas | B17: 65917 | C17: 8080 | D17: 57462 | E17: 375 | F17: 9.655890698 | G17: 9.701044543 | H17: 9.669911735 | I17: 7.301401869
A18: Limón | B18: 68213 | C18: 7943 | D18: 60132 | E18: 138 | F18: 9.992221615 | G18: 9.536559011 | H18: 10.11922892 | I18: 2.686915888
A21: Fuente: Sección Solicitudes Cedulares y Coordinación de Servicios Regionales del Tribunal Supremo de Elecciones.

Sheet G4
A2: GRÁFICO 4
A3: COSTA RICA: SOLICITUDES DE CÉDULA RECIBIDAS, POR CLASE DE SOLICITUD | L3: PV | M3: DUP | N3: TRASL
A4: SEGÚN PROVINCIA, AL 31 DE DICIEMBRE DE 2013 | K4: San José | L4: 30995 | M4: 247710 | N4: 2565
K5: Alajuela | L5: 15525 | M5: 96366 | N5: 850
K6: Limón | L6: 7943 | M6: 60132 | N6: 138
E7: Sin lugar | K7: Puntarenas | L7: 8080 | M7: 57462 | N7: 375
K8: Guanacaste | L8: 6361 | M8: 46513 | N8: 432
K9: Cartago | L9: 7886 | M9: 45035 | N9: 297 | O9: 682661
K10: Heredia | L10: 6500 | M10: 41017 | N10: 479
K11: Total | L11: 83290 | M11: 594235 | N11: 5136
L13: Duplicado | M13: Primera vez | N13: Traslado
K14: Heredia | L14: 41.017 | M14: 6.5 | N14: 0.479
K15: Cartago | L15: 45.035 | M15: 7.886 | N15: 0.297
K16: Guanacaste | L16: 46.513 | M16: 6.361 | N16: 0.432
K17: Puntarenas | L17: 57.462 | M17: 8.08 | N17: 0.375
K18: Limón | L18: 60.132 | M18: 7.943 | N18: 0.138
K19: Alajuela | L19: 96.366 | M19: 15.525 | N19: 0.85
K20: San José | L20: 247.71 | M20: 30.995 | N20: 2.565
K21: Total | L21: 594.235 | M21: 83.29 | N21: 5.136
A29: Fuente: Cuadro 8.

Sheet 9
A1: CUADRO 9
A2: COSTA RICA: SOLICITUDES DE CÉDULA RECIBIDAS
A3: POR FUENTE DE INGRESO, SEGÚN MES
A4: AL 31 DE DICIEMBRE DE 2013
A6: Mes | B6: Fuente de ingreso
B7: Total | C7: Oficina central | D7: Oficinas regionales 1/ | E7: Consulados | F7: Cedulación a domicilio | G7: Cedulación ambulante
A9: TOTAL | B9: 682661 | C9: 235716 | D9: 417537 | E9: 6031 | F9: 4132 | G9: 19245
A11: Enero | B11: 69420 | C11: 24406 | D11: 44330 | E11: 270 | F11: 414 | G11: 0
A12: Febrero | B12: 56533 | C12: 19343 | D12: 34496 | E12: 436 | F12: 427 | G12: 1831
A13: Marzo | B13: 44299 | C13: 15132 | D13: 26691 | E13: 433 | F13: 266 | G13: 1777
A14: Abril | B14: 63661 | C14: 21506 | D14: 38854 | E14: 546 | F14: 353 | G14: 2402
A15: Mayo | B15: 58060 | C15: 19325 | D15: 36030 | E15: 609 | F15: 412 | G15: 1684
A16: Junio | B16: 50387 | C16: 16932 | D16: 30966 | E16: 392 | F16: 296 | G16: 1801
A17: Julio | B17: 58921 | C17: 21392 | D17: 36814 | E17: 360 | F17: 355 | G17: 0
A18: Agosto | B18: 56388 | C18: 18852 | D18: 31939 | E18: 689 | F18: 307 | G18: 4601
A19: Setiembre | B19: 69643 | C19: 22600 | D19: 41193 | E19: 616 | F19: 309 | G19: 4925
A20: Octubre | B20: 62677 | C20: 21328 | D20: 39626 | E20: 1221 | F20: 278 | G20: 224
A21: Noviembre | B21: 51561 | C21: 18239 | D21: 32527 | E21: 300 | F21: 495 | G21: 0
A22: Diciembre | B22: 41111 | C22: 16661 | D22: 24071 | E22: 159 | F22: 220 | G22: 0
A25: 1/ El Tribunal Supremo de Elecciones cuenta con 32 Oficinas Regionales.
A27: Fuente: Sección Solicitudes Cedulares y Coordinación de Servicios Regionales del Tribunal Supremo de Elecciones.

Sheet G5
A2: GRÁFICO 5
A3: COSTA RICA: PORCENTAJE DE SOLICITUDES DE CÉDULA RECIBIDAS | J3: SOLICITUDES CEDULARES RECIBIDAS
A4: POR FUENTE DE INGRESO, AL 31 DE DICIEMBRE DE 2013 | J4: TOTAL | K4: 682661
J5: Oficinas Regionales | K5: 417537 | L5: 61.16315419
J6: Oficina Central | K6: 235716 | L6: 34.52899756
E7: Sin lugar | J7: Cedulación Ambulante | K7: 19245 | L7: 2.819115198
J8: Consulados y domicilio | K8: 10163 | L8: 1.488733061
A29: Fuente: Cuadro 9.

Sheet 10
A2: CUADRO 10
A3: SOLICITUDES DE CÉDULA RECIBIDAS EN LAS OFICINAS REGIONALES
A4: POR MES, SEGÚN OFICINA REGIONAL
A5: AL 31 DE DICIEMBRE DE 2013
A7: Oficina Regional | B7: Total | C7: Ene | D7: Feb | E7: Mar | F7: Abr | G7: May | H7: Jun | I7: Jul | J7: Ago | K7: Set | L7: Oct | M7: Nov | N7: Dic
A9: TOTAL | B9: =SUM(B11:B42) -> 417537 | C9: 44330 | D9: 34496 | E9: 26691 | F9: 38854 | G9: 36030 | H9: 30966 | I9: 36814 | J9: 31939 | K9: 41193 | L9: =SUM(L11:L42) -> 39626 | M9: 32527 | N9: 24071
A11: Aguirre | B11: =SUM(C11:N11) -> 6973 | C11: 725 | D11: 511 | E11: 443 | F11: 689 | G11: 608 | H11: 528 | I11: 616 | J11: 536 | K11: 661 | L11: 689 | M11: 552 | N11: 415
A12: Alajuela | B12: 37485 | C12: 3981 | D12: 3083 | E12: 2428 | F12: 3556 | G12: 3159 | H12: 2715 | I12: 3347 | J12: 2955 | K12: 3777 | L12: 3472 | M12: 2874 | N12: 2138
A13: Atenas | B13: 3340 | C13: 326 | D13: 303 | E13: 222 | F13: 287 | G13: 304 | H13: 279 | I13: 282 | J13: 287 | K13: 386 | L13: 285 | M13: 218 | N13: 161
A14: Buenos Aires | B14: 5108 | C14: 534 | D14: 397 | E14: 336 | F14: 458 | G14: 454 | H14: 413 | I14: 472 | J14: 380 | K14: 485 | L14: 481 | M14: 397 | N14: 301
A15: Cañas | B15: 9205 | C15: 973 | D15: 787 | E15: 515 | F15: 909 | G15: 860 | H15: 693 | I15: 795 | J15: 748 | K15: 875 | L15: 815 | M15: 686 | N15: 549
A16: Cartago | B16: 40353 | C16: 4371 | D16: 3254 | E16: 2488 | F16: 3676 | G16: 3427 | H16: 2892 | I16: 4506 | J16: 2917 | K16: 4005 | L16: 3585 | M16: 2976 | N16: 2256
A17: Corredores | B17: 9144 | C17: 948 | D17: 849 | E17: 644 | F17: 879 | G17: 868 | H17: 667 | I17: 742 | J17: 667 | K17: 842 | L17: 834 | M17: 679 | N17: 525
A18: Coto Brus | B18: 4976 | C18: 533 | D18: 429 | E18: 333 | F18: 454 | G18: 455 | H18: 381 | I18: 438 | J18: 386 | K18: 484 | L18: 461 | M18: 339 | N18: 283
A19: Golfito | B19: 4931 | C19: 571 | D19: 502 | E19: 404 | F19: 448 | G19: 414 | H19: 345 | I19: 453 | J19: 350 | K19: 413 | L19: 420 | M19: 373 | N19: 238
A20: Grecia | B20: 13728 | C20: 1552 | D20: 1131 | E20: 917 | F20: 1301 | G20: 1186 | H20: 972 | I20: 1150 | J20: 1089 | K20: 1373 | L20: 1297 | M20: 1018 | N20: 742
A21: Guatuso | B21: 2506 | C21: 259 | D21: 210 | E21: 165 | F21: 226 | G21: 181 | H21: 207 | I21: 211 | J21: 189 | K21: 249 | L21: 253 | M21: 203 | N21: 153
A22: Heredia | B22: 40782 | C22: 4625 | D22: 3296 | E22: 2621 | F22: 3673 | G22: 3455 | H22: 3133 | I22: 3438 | J22: 2853 | K22: 4391 | L22: 3928 | M22: 3169 | N22: 2200
A23: Jicaral | B23: 2088 | C23: 196 | D23: 185 | E23: 127 | F23: 182 | G23: 193 | H23: 157 | I23: 193 | J23: 164 | K23: 238 | L23: 181 | M23: 157 | N23: 115
A24: Liberia | B24: 18894 | C24: 2098 | D24: 1407 | E24: 1198 | F24: 1695 | G24: 1587 | H24: 1383 | I24: 1631 | J24: 1487 | K24: 1773 | L24: 1961 | M24: 1540 | N24: 1134
A25: Limón | B25: 21213 | C25: 2325 | D25: 1764 | E25: 1409 | F25: 2032 | G25: 1842 | H25: 1537 | I25: 1715 | J25: 1619 | K25: 1883 | L25: 2054 | M25: 1782 | N25: 1251
A26: Los Chiles | B26: 2358 | C26: 260 | D26: 216 | E26: 121 | F26: 214 | G26: 232 | H26: 143 | I26: 204 | J26: 210 | K26: 227 | L26: 220 | M26: 183 | N26: 128
A27: Nicoya | B27: 8908 | C27: 874 | D27: 707 | E27: 596 | F27: 866 | G27: 786 | H27: 630 | I27: 721 | J27: 724 | K27: 917 | L27: 863 | M27: 706 | N27: 518
A28: Orotina | B28: 5978 | C28: 579 | D28: 493 | E28: 392 | F28: 566 | G28: 545 | H28: 452 | I28: 513 | J28: 436 | K28: 621 | L28: 568 | M28: 439 | N28: 374
A29: Osa | B29: 4063 | C29: 347 | D29: 392 | E29: 296 | F29: 400 | G29: 352 | H29: 288 | I29: 337 | J29: 311 | K29: 408 | L29: 383 | M29: 319 | N29: 230
A30: Pérez Zeledón | B30: 22223 | C30: 2193 | D30: 1761 | E30: 1393 | F30: 2152 | G30: 1764 | H30: 1750 | I30: 1961 | J30: 1727 | K30: 2281 | L30: 2053 | M30: 1815 | N30: 1373
A31: Pococí | B31: 28812 | C31: 2946 | D31: 2250 | E31: 1817 | F31: 2582 | G31: 2428 | H31: 2174 | I31: 2500 | J31: 2295 | K31: 2676 | L31: 3003 | M31: 2428 | N31: 1713
A32: Puntarenas | B32: 23344 | C32: 2435 | D32: 1985 | E32: 1449 | F32: 2072 | G32: 2010 | H32: 1697 | I32: 2014 | J32: 1800 | K32: 2252 | L32: 2322 | M32: 1863 | N32: 1445
A33: Puriscal | B33: 7165 | C33: 721 | D33: 580 | E33: 427 | F33: 704 | G33: 622 | H33: 547 | I33: 590 | J33: 522 | K33: 800 | L33: 654 | M33: 607 | N33: 391
A34: San Carlos | B34: 22138 | C34: 2438 | D34: 1846 | E34: 1389 | F34: 2038 | G34: 2012 | H34: 1614 | I34: 1896 | J34: 1741 | K34: 2231 | L34: 2108 | M34: 1606 | N34: 1219
A35: San Ramón | B35: 17503 | C35: 2003 | D35: 1540 | E35: 1069 | F35: 1563 | G35: 1444 | H35: 1316 | I35: 1462 | J35: 1319 | K35: 1917 | L35: 1537 | M35: 1323 | N35: 1010
A36: Santa Cruz | B36: 9676 | C36: 956 | D36: 858 | E36: 683 | F36: 941 | G36: 901 | H36: 677 | I36: 824 | J36: 757 | K36: 864 | L36: 904 | M36: 770 | N36: 541
A37: Sarapiquí | B37: 6685 | C37: 636 | D37: 571 | E37: 398 | F37: 666 | G37: 582 | H37: 535 | I37: 615 | J37: 539 | K37: 616 | L37: 633 | M37: 516 | N37: 378
A38: Siquirres | B38: 11929 | C38: 1287 | D38: 967 | E38: 684 | F38: 1159 | G38: 1080 | H38: 882 | I38: 936 | J38: 908 | K38: 1125 | L38: 1217 | M38: 954 | N38: 730
A39: Talamanca | B39: 4977 | C39: 442 | D39: 461 | E39: 363 | F39: 429 | G39: 399 | H39: 381 | I39: 404 | J39: 372 | K39: 390 | L39: 510 | M39: 510 | N39: 316
A40: Tarrazú | B40: 4099 | C40: 441 | D40: 337 | E40: 245 | F40: 422 | G40: 363 | H40: 312 | I40: 377 | J40: 313 | K40: 429 | L40: 346 | M40: 284 | N40: 230
A41: Turrialba | B41: 11834 | C41: 1195 | D41: 1045 | E41: 809 | F41: 1123 | G41: 1040 | H41: 885 | I41: 1046 | J41: 942 | K41: 1117 | L41: 1113 | M41: 839 | N41: 680
A42: Upala | B42: 5119 | C42: 560 | D42: 379 | E42: 310 | F42: 492 | G42: 477 | H42: 381 | I42: 425 | J42: 396 | K42: 487 | L42: 476 | M42: 402 | N42: 334
A45: FUENTE: Coordinación de Servicios Regionales del Tribunal Supremo de Elecciones.

Sheet 11
A1: CUADRO 11
A2: COSTA RICA: PRODUCTOS Y SERVICIOS BRINDADOS, POR TIPO DE SERVICIO
A3: SEGÚN MES, AL 31 DE DICIEMBRE DE 2013
A5: Mes | B5: Total | C5: Productos y Sevicios
C6: Cédulas de identidad impresas | D6: Tarjetas identidad de menores impresas | E6: Certificaciones y constancias expedidas | F6: Asambleas de partidos políticos fiscalizadas | G6: Atención de consultas en materia electoral 1/ | H6: Movimientos y actualizaciones al Padrón Electoral 2/
A8: Total | B8: =SUM(B10:B21) -> 4550630 | C8: =SUM(C10:C21) -> 682207 | D8: 150275 | E8: 3055315 | F8: 2597 | G8: 30615 | H8: 629621
A10: Enero | B10: 448059 | C10: 70073 | D10: 17285 | E10: 279285 | F10: 405 | G10: 1530 | H10: 79481
A11: Febrero | B11: 470566 | C11: 56958 | D11: 15896 | E11: 335120 | F11: 467 | G11: 2133 | H11: 59992
A12: Marzo | B12: 369161 | C12: 43648 | D12: 8145 | E12: 270721 | F12: 250 | G12: 1220 | H12: 45177
A13: Abril | B13: 441954 | C13: 63260 | D13: 10657 | E13: 296943 | F13: 528 | G13: 1592 | H13: 68974
A14: Mayo | B14: 392156 | C14: 59484 | D14: 10456 | E14: 258301 | F14: 252 | G14: 1734 | H14: 61929
A15: Junio | B15: 310400 | C15: 49775 | D15: 9163 | E15: 197022 | F15: 246 | G15: 1895 | H15: 52299
A16: Julio | B16: 371074 | C16: 58852 | D16: 14614 | E16: 231755 | F16: 205 | G16: 3267 | H16: 62381
A17: Agosto | B17: 368379 | C17: 55822 | D17: 9339 | E17: 240827 | F17: 116 | G17: 2880 | H17: 59395
A18: Setiembre | B18: 358857 | C18: 57123 | D18: 10865 | E18: 222844 | F18: 91 | G18: 5378 | H18: 62556
A19: Octubre | B19: 435968 | C19: 68748 | D19: 15191 | E19: 271875 | F19: 21 | G19: 2879 | H19: 77254
A20: Noviembre | B20: 343518 | C20: 53709 | D20: 14687 | E20: 271943 | F20: 9 | G20: 2987 | H20: 183
A21: Diciembre | B21: 240538 | C21: 44755 | D21: 13977 | E21: 178679 | F21: 7 | G21: 3120 | H21: 0
A24: 1/ De Partidos Políticos, Municipalidades, Asamblea Legislativa y otros.
A25: 2/ No se aplican movimientos al padrón en diciembre por estar cerrado para las elecciones nacionales a celebrarse en Febrero 2014.
A27: Fuente: Oficinas del Tribunal Supremo de Elecciones.

Sheet 12
A1: CUADRO 12
A2: COSTA RICA: INSCRIPCIONES CIVILES POR MES, SEGÚN CLASE DE INSCRIPCIÓN
A3: AL 31 DE DICIEMBRE DE 2013
A5: Clase de inscripción 1/ | B5: Total | C5: Mes
C6: Enero | D6: Febrero | E6: Marzo | F6: Abril | G6: Mayo | H6: Junio | I6: Julio | J6: Agosto | K6: Setiembre | L6: Octubre | M6: Noviembre | N6: Diciembre
A8: Nacimientos | B8: 73293 | C8: 6900 | D8: 6746 | E8: 4404 | F8: 6739 | G8: 6263 | H8: 5114 | I8: 6388 | J8: 6530 | K8: 6190 | L8: 7551 | M8: 6119 | N8: 4349
A9: Matrimonios: | B9: 26609 | C9: 3774 | D9: 3171 | E9: 1663 | F9: 2343 | G9: 2444 | H9: 1703 | I9: 2176 | J9: 1854 | K9: 1907 | L9: 2017 | M9: 1558 | N9: 1999
A10: Católicos | B10: 8550 | C10: 1740 | D10: 1240 | E10: 303 | F10: 697 | G10: 867 | H10: 392 | I10: 561 | J10: 464 | K10: 622 | L10: 402 | M10: 863 | N10: 399
A11: Civiles | B11: 17665 | C11: 1993 | D11: 1898 | E11: 1332 | F11: 1594 | G11: 1540 | H11: 1304 | I11: 1581 | J11: 1344 | K11: 1245 | L11: 1584 | M11: 656 | N11: 1594
A12: Extranjeros2/ | B12: 394 | C12: 41 | D12: 33 | E12: 28 | F12: 52 | G12: 37 | H12: 7 | I12: 34 | J12: 46 | K12: 40 | L12: 31 | M12: 39 | N12: 6
A13: Defunciones | B13: 21402 | C13: 2392 | D13: 1645 | E13: 1175 | F13: 2170 | G13: 1827 | H13: 1788 | I13: 1689 | J13: 1922 | K13: 1658 | L13: 2419 | M13: 1545 | N13: 1172
A14: Divorcios | B14: 13349 | C14: 1277 | D14: 720 | E14: 1196 | F14: 1426 | G14: 1140 | H14: 1191 | I14: 1099 | J14: 1186 | K14: 739 | L14: 1125 | M14: 1230 | N14: 1020
A15: Separaciones Judiciales | B15: 95 | C15: 3 | D15: 2 | E15: 0 | F15: 0 | G15: 1 | H15: 1 | I15: 0 | J15: 0 | K15: 67 | L15: 17 | M15: 3 | N15: 1
A16: Reconocimientos | B16: 25497 | C16: 2079 | D16: 2761 | E16: 1603 | F16: 2329 | G16: 1089 | H16: 2052 | I16: 2556 | J16: 2137 | K16: 2019 | L16: 2478 | M16: 2431 | N16: 1963
A17: Legitimaciones | B17: 67 | C17: 1 | D17: 4 | E17: 0 | F17: 7 | G17: 0 | H17: 0 | I17: 8 | J17: 1 | K17: 37 | L17: 4 | M17: 3 | N17: 2
A18: Adopciones | B18: 178 | C18: 10 | D18: 20 | E18: 25 | F18: 23 | G18: 0 | H18: 14 | I18: 0 | J18: 0 | K18: 33 | L18: 23 | M18: 15 | N18: 15
A19: Impugnación de paternidad | B19: 355 | C19: 34 | D19: 41 | E19: 9 | F19: 56 | G19: 9 | H19: 53 | I19: 25 | J19: 15 | K19: 29 | L19: 36 | M19: 18 | N19: 30
A20: Investigación de paternidad | B20: 577 | C20: 75 | D20: 48 | E20: 24 | F20: 144 | G20: 11 | H20: 44 | I20: 76 | J20: 34 | K20: 29 | L20: 51 | M20: 17 | N20: 24
A21: Opciones 3/ | B21: 242 | C21: 2 | D21: 50 | E21: 7 | F21: 1 | G21: 0 | H21: 0 | I21: 2 | J21: 9 | K21: 119 | L21: 24 | M21: 17 | N21: 11
A22: Cartas de naturalización entregadas | B22: 3050 | C22: 252 | D22: 326 | E22: 268 | F22: 306 | G22: 370 | H22: 250 | I22: 354 | J22: 181 | K22: 205 | L22: 222 | M22: 206 | N22: 110
A23: Hombres | B23: 1105 | C23: 125 | D23: 144 | E23: 116 | F23: 144 | G23: 161 | H23: 102 | I23: 152 | J23: 87 | K23: 74 | L23: 0 | M23: 0 | N23: 0
A24: Mujeres | B24: 1704 | C24: 127 | D24: 182 | E24: 152 | F24: 162 | G24: 209 | H24: 148 | I24: 202 | J24: 94 | K24: 131 | L24: 117 | M24: 123 | N24: 57
A27: 1/ Todos los datos se refieren a hechos inscritos en el mes respectivo, no así a los ocurridos.
A29: 2/ Matrimonios inscritos, pero realizados en el extranjero.
A31: 3/ Trámite realizado en Actos Jurídicos.
A33: Fuente: Sección de Inscripciones, Oficina de Actos Jurídicos, Sección de Opciones y Naturalizaciones del Tribunal Supremo de Elecciones.

Sheet G6
A2: GRÁFICO 6
A3: COSTA RICA: MATRIMONIOS INSCRITOS, SEGÚN CLASE DE INSCRIPCIÓN | K3: MATRIMONIOS INSCRITOS
A4: AL 31 DE DICIEMBRE DE 2013 | K4: Civiles | L4: 17665 | M4: 66.38731256
K5: Católicos | L5: 8550 | M5: 32.13198542
K6: Extranjeros | L6: 394 | M6: 1.480702018
E7: Sin lugar | K7: Total | L7: 26609
A29: Fuente: Cuadro 12.

Sheet G7
A2: GRÁFICO 7 | K2: MATRIMONIOS vs DIVORCIOS
A3: COSTA RICA: MATRIMONIOS Y DIVORCIOS INSCRITOS | L3: Matrimonios | M3: Divorcios
A4: POR MES, AL 31 DE DICIEMBRE DE 2013 | K4: ENE | L4: 3774 | M4: 1277
K5: FEB | L5: 3171 | M5: 720
K6: MAR | L6: 1663 | M6: 1196
K7: ABR | L7: 2343 | M7: 1426
K8: MAY | L8: 2444 | M8: 1140
K9: JUN | L9: 1703 | M9: 1191
K10: JUL | L10: 2176 | M10: 1099
K11: AGO | L11: 1854 | M11: 1186
K12: SET | L12: 1907 | M12: 739
K13: OCT | L13: 2017 | M13: 1125
K14: NOV | L14: 1558 | M14: 1230
K15: DIC | L15: 1999 | M15: 1020
L16: 26609 | M16: 13349
A30: Fuente: Cuadro 12.

Sheet 13
A1: CUADRO 13
A2: COSTA RICA: NACIMIENTOS INSCRITOS, POR PROVINCIA Y PARTIDO ESPECIAL
A3: SEGÚN MES, AL 31 DE DICIEMBRE DE 2013
A5: Mes | B5: Total | C5: San José | D5: Alajuela | E5: Cartago | F5: Heredia | G5: Guanacaste | H5: Puntarenas | I5: Limón | J5: Partido especial 1/
A7: Costa Rica | B7: =SUM(B9:B20) -> 73293 | C7: =SUM(C9:C20) -> 31156 | D7: =SUM(D9:D20) -> 11576 | E7: 7352 | F7: 4785 | G7: 5605 | H7: 4265 | I7: 7119 | J7: 1435
A9: Enero | B9: =SUM(C9:J9) -> 6900 | C9: 3069 | D9: 714 | E9: 864 | F9: 464 | G9: 485 | H9: 293 | I9: 685 | J9: 326
A10: Febrero | B10: =SUM(C10:J10) -> 6746 | C10: 2657 | D10: 1327 | E10: 632 | F10: 470 | G10: 593 | H10: 396 | I10: 639 | J10: 32
A11: Marzo | B11: 4404 | C11: 1935 | D11: 678 | E11: 473 | F11: 256 | G11: 312 | H11: 216 | I11: 466 | J11: 68
A12: Abril | B12: 6739 | C12: 3264 | D12: 970 | E12: 641 | F12: 276 | G12: 501 | H12: 445 | I12: 514 | J12: 128
A13: Mayo | B13: 6263 | C13: 2646 | D13: 1082 | E13: 512 | F13: 440 | G13: 392 | H13: 476 | I13: 553 | J13: 162
A14: Junio | B14: =SUM(C14:J14) -> 5114 | C14: 1668 | D14: 809 | E14: 492 | F14: 420 | G14: 582 | H14: 306 | I14: 681 | J14: 156
A15: Julio | B15: 6388 | C15: 2706 | D15: 1045 | E15: 452 | F15: 472 | G15: 553 | H15: 467 | I15: 645 | J15: 48
A16: Agosto | B16: 6530 | C16: 2885 | D16: 956 | E16: 741 | F16: 479 | G16: 554 | H16: 305 | I16: 476 | J16: 134
A17: Setiembre | B17: 6190 | C17: 2362 | D17: 1136 | E17: 710 | F17: 443 | G17: 429 | H17: 378 | I17: 659 | J17: 73
A18: Octubre | B18: 7551 | C18: 3321 | D18: 1305 | E18: 899 | F18: 502 | G18: 314 | H18: 270 | I18: 784 | J18: 156
A19: Noviembre | B19: 6119 | C19: 2530 | D19: 1072 | E19: 513 | F19: 334 | G19: 430 | H19: 473 | I19: 670 | J19: 97
A20: Diciembre | B20: 4349 | C20: 2113 | D20: 482 | E20: 423 | F20: 229 | G20: 460 | H20: 240 | I20: 347 | J20: 55
A23: 1/ Inscripción de nacimientos de costarricenses nacidos en el extranjero.
A25: Fuente: Sección de Inscripciones del Tribunal Supremo de Elecciones.

Sheet 14
A1: CUADRO 14
A2: COSTA RICA: DEFUNCIONES INSCRITAS, POR PROVINCIA, SEGÚN MES
A3: AL 31 DE DICIEMBRE DE 2013
A5: Mes | B5: Total | C5: San José | D5: Alajuela | E5: Cartago | F5: Heredia | G5: Guanacaste | H5: Puntarenas | I5: Limón
A7: Costa Rica | B7: =SUM(B9:B20) -> 21402 | C7: =SUM(C9:C20) -> 10189 | D7: 3481 | E7: 2056 | F7: 1552 | G7: 1568 | H7: 1351 | I7: 1205
A9: Enero | B9: =SUM(C9:I9) -> 2392 | C9: 900 | D9: 663 | E9: 221 | F9: 149 | G9: 178 | H9: 143 | I9: 138
A10: Febrero | B10: =SUM(C10:I10) -> 1645 | C10: 777 | D10: 188 | E10: 108 | F10: 136 | G10: 190 | H10: 119 | I10: 127
A11: Marzo | B11: 1175 | C11: 630 | D11: 135 | E11: 123 | F11: 80 | G11: 84 | H11: 67 | I11: 56
A12: Abril | B12: 2170 | C12: 1124 | D12: 220 | E12: 211 | F12: 155 | G12: 188 | H12: 164 | I12: 108
A13: Mayo | B13: 1827 | C13: 918 | D13: 321 | E13: 193 | F13: 121 | G13: 97 | H13: 86 | I13: 91
A14: Junio | B14: 1788 | C14: 763 | D14: 341 | E14: 157 | F14: 148 | G14: 149 | H14: 124 | I14: 106
A15: Julio | B15: 1689 | C15: 854 | D15: 289 | E15: 196 | F15: 128 | G15: 89 | H15: 48 | I15: 85
A16: Agosto | B16: 1922 | C16: 971 | D16: 284 | E16: 163 | F16: 114 | G16: 129 | H16: 147 | I16: 114
A17: Setiembre | B17: 1658 | C17: 774 | D17: 243 | E17: 130 | F17: 140 | G17: 142 | H17: 116 | I17: 113
A18: Octubre | B18: 2419 | C18: 1090 | D18: 431 | E18: 286 | F18: 165 | G18: 149 | H18: 175 | I18: 123
A19: Noviembre | B19: 1545 | C19: 786 | D19: 195 | E19: 141 | F19: 135 | G19: 103 | H19: 89 | I19: 96
A20: Diciembre | B20: 1172 | C20: 602 | D20: 171 | E20: 127 | F20: 81 | G20: 70 | H20: 73 | I20: 48
A23: Fuente: Sección de Inscripciones del Tribunal Supremo de Elecciones.

Sheet G8
A2: GRÁFICO 8 | K2: Nacimientos | L2: Defunciones
A3: COSTA RICA: NACIMIENTOS Y DEFUNCIONES INSCRITAS | K3: 73293 | L3: 21402
A4: POR MES, AL 31 DE DICIEMBRE DE 2013 | J4: ENE | K4: 6900 | L4: 2392
J5: FEB | K5: 6746 | L5: 1645
J6: MAR | K6: 4404 | L6: 1175
E7: Sin lugar | J7: ABR | K7: 6739 | L7: 2170
J8: MAY | K8: 6263 | L8: 1827
J9: JUN | K9: 5114 | L9: 1788
J10: JUL | K10: 6388 | L10: 1689
J11: AGO | K11: 6530 | L11: 1922
J12: SET | K12: 6190 | L12: 1658
J13: OCT | K13: 7551 | L13: 2419
J14: NOV | K14: 6119 | L14: 1545
J15: DIC | K15: 4349 | L15: 1172
A26: Fuente: Cuadros 13 y 14.

Sheet 15
A1: CUADRO 15
A2: COSTA RICA: TARJETAS DE IDENTIDAD DE MENORES IMPRESAS
A3: POR PROVINCIA, SEGÚN MES, AL 31 DE DICIEMBRE DE 2013
A5: Mes | B5: Total | C5: Provincia
C6: San José | D6: Alajuela | E6: Cartago | F6: Heredia | G6: Guanacaste | H6: Puntarenas | I6: Limón | J6: Ambulante
A8: Total | B8: =SUM(C8:J8) -> 150275 | C8: =SUM(C10:C21) -> 52155 | D8: 29614 | E8: 14241 | F8: 11846 | G8: 10949 | H8: 14585 | I8: 16215 | J8: 670
A10: Enero | B10: =SUM(C10:J10) -> 17285 | C10: 5923 | D10: 3898 | E10: 1624 | F10: 1282 | G10: 1443 | H10: 1309 | I10: 1806 | J10: 0
A11: Febrero | B11: =SUM(C11:J11) -> 15896 | C11: 5081 | D11: 3083 | E11: 1365 | F11: 1260 | G11: 1133 | H11: 1762 | I11: 2211 | J11: 1
A12: Marzo | B12: 8145 | C12: 2805 | D12: 1476 | E12: 777 | F12: 716 | G12: 517 | H12: 814 | I12: 1019 | J12: 21
A13: Abril | B13: 10657 | C13: 3550 | D13: 2138 | E13: 1144 | F13: 828 | G13: 735 | H13: 1120 | I13: 1142 | J13: 0
A14: Mayo | B14: 10456 | C14: 3198 | D14: 2371 | E14: 1067 | F14: 762 | G14: 914 | H14: 1171 | I14: 973 | J14: 0
A15: Junio | B15: 9163 | C15: 2955 | D15: 1852 | E15: 1044 | F15: 675 | G15: 594 | H15: 863 | I15: 1041 | J15: 139
A16: Julio | B16: 14614 | C16: 5780 | D16: 2410 | E16: 1255 | F16: 1346 | G16: 919 | H16: 1272 | I16: 1488 | J16: 144
A17: Agosto | B17: 9339 | C17: 3499 | D17: 1633 | E17: 907 | F17: 737 | G17: 700 | H17: 771 | I17: 982 | J17: 110
A18: Setiembre | B18: 10865 | C18: 3774 | D18: 2332 | E18: 1090 | F18: 958 | G18: 784 | H18: 996 | I18: 931 | J18: 0
A19: Octubre | B19: 15191 | C19: 6135 | D19: 3191 | E19: 1182 | F19: 728 | G19: 987 | H19: 1486 | I19: 1227 | J19: 255
A20: Noviembre | B20: 14687 | C20: 5168 | D20: 2534 | E20: 1486 | F20: 1488 | G20: 897 | H20: 1363 | I20: 1751 | J20: 0
A21: Diciembre | B21: 13977 | C21: 4287 | D21: 2696 | E21: 1300 | F21: 1066 | G21: 1326 | H21: 1658 | I21: 1644 | J21: 0
A24: Fuente: Departamento Civil y Coordinación de Servicios Regionales del Tribunal Supremo de Elecciones.

Sheet 16
A1: CUADRO 16
A2: COSTA RICA: CERTIFICACIONES SOLICITADAS VÍA
A3: INTERNET, POR TIPO DE SOLICITUD, SEGÚN MES
A4: AL 31 DE DICIEMBRE DE 2013
A6: Mes | B6: Total | C6: Tipo de solicitud
C7: Nacimiento | D7: Matrimonio | E7: Defunción | F7: No aparece matrimonio
A9: Total | B9: =SUM(C9:F9) -> 90495 | C9: =SUM(C11:C22) -> 51875 | D9: =SUM(D11:D22) -> 16981 | E9: =SUM(E11:E22) -> 5987 | F9: =SUM(F11:F22) -> 15652
A11: Enero | B11: =SUM(C11:F11) -> 8806 | C11: 5126 | D11: 1615 | E11: 519 | F11: 1546
A12: Febrero | B12: 9006 | C12: 5300 | D12: 1564 | E12: 551 | F12: 1591
A13: Marzo | B13: 5838 | C13: 3345 | D13: 1054 | E13: 402 | F13: 1037
A14: Abril | B14: 8686 | C14: 4894 | D14: 1717 | E14: 583 | F14: 1492
A15: Mayo | B15: 7623 | C15: 4216 | D15: 1518 | E15: 528 | F15: 1361
A16: Junio | B16: 6410 | C16: 3571 | D16: 1284 | E16: 495 | F16: 1060
A17: Julio | B17: 8072 | C17: 4873 | D17: 1398 | E17: 510 | F17: 1291
A18: Agosto | B18: 8112 | C18: 4956 | D18: 1470 | E18: 505 | F18: 1181
A19: Setiembre | B19: 7350 | C19: 3863 | D19: 1492 | E19: 594 | F19: 1401
A20: Octubre | B20: 7770 | C20: 4347 | D20: 1565 | E20: 562 | F20: 1296
A21: Noviembre | B21: 8223 | C21: 4746 | D21: 1443 | E21: 501 | F21: 1533
A22: Diciembre | B22: 4599 | C22: 2638 | D22: 861 | E22: 237 | F22: 863
A25: Fuente: Departamento Civil del Tribunal Supremo de Elecciones.

Sheet 17
A2: CUADRO 17
A3: COSTA RICA: CARTAS DE NATURALIZACIÓN ENTREGADAS, POR MES
A4: SEGÚN PAÍS DE ORIGEN, AL 31 DE DICIEMBRE DE 2013
A6: País de origen | B6: Total | C6: Ene | D6: Feb | E6: Mar | F6: Abr | G6: May | H6: Jun | I6: Jul | J6: Ago | K6: Set | L6: Oct | M6: Nov | N6: Dic
A8: Total | B8: =SUM(B10:B66) -> 3050 | C8: 252 | D8: 326 | E8: 268 | F8: 306 | G8: 370 | H8: 250 | I8: 354 | J8: 181 | K8: 205 | L8: 222 | M8: 206 | N8: 110
A10: Nicaragua | B10: =SUM(C10:N10) -> 1455 | C10: =97+19 -> 116 | D10: =21+128 -> 149 | E10: =108+20 -> 128 | F10: 154 | G10: 175 | H10: 116 | I10: 168 | J10: 87 | K10: 105 | L10: 100 | M10: =91+7 -> 98 | N10: 59
A11: Colombia | B11: 610 | C11: =48+8 -> 56 | D11: =3+51 -> 54 | E11: =41+8 -> 49 | F11: 62 | G11: 79 | H11: 50 | I11: 67 | J11: 33 | K11: 45 | L11: 44 | M11: =47+4 -> 51 | N11: 20
A12: Estados Unidos | B12: 119 | C12: =9+2 -> 11 | D12: =1+8 -> 9 | E12: =8+2 -> 10 | F12: 10 | G12: 14 | H12: 11 | I12: 12 | J12: 7 | K12: 7 | L12: 15 | M12: =5+3 -> 8 | N12: 5
A13: Perú | B13: 111 | C13: =5 -> 5 | D13: =3+17 -> 20 | E13: =10+2 -> 12 | F13: 9 | G13: 12 | H13: 7 | I13: 16 | J13: 7 | K13: 6 | L13: 9 | M13: =5 -> 5 | N13: 3
A14: Cuba | B14: 108 | C14: =12+1 -> 13 | D14: =3+13 -> 16 | E14: =11 -> 11 | F14: 9 | G14: 14 | H14: 5 | I14: 13 | J14: 4 | K14: 7 | L14: 7 | M14: =5+1 -> 6 | N14: 3
A15: El Salvador | B15: 93 | C15: =9 -> 9 | D15: =1+9 -> 10 | E15: =5+2 -> 7 | F15: 7 | G15: 13 | H15: 8 | I15: 12 | J15: 6 | K15: 7 | L15: 7 | M15: =2 -> 2 | N15: 5
A16: República Dominicana | B16: 89 | C16: =4 -> 4 | D16: 10 | E16: =10+1 -> 11 | F16: 9 | G16: 9 | H16: 17 | I16: 6 | J16: 6 | K16: 5 | L16: 6 | M16: =4 -> 4 | N16: 2
A17: Panamá | B17: 61 | C17: =1+2 -> 3 | D17: =3+11 -> 14 | E17: =3+4 -> 7 | F17: 7 | G17: 7 | H17: 2 | I17: 7 | J17: 1 | K17: 1 | L17: 5 | M17: =3+1 -> 4 | N17: 3
A18: China | B18: 55 | C18: =3+1 -> 4 | D18: =8 -> 8 | E18: =2 -> 2 | F18: 1 | G18: 8 | H18: 8 | I18: 8 | J18: 0 | K18: 5 | L18: 2 | M18: =6+1 -> 7 | N18: 2
A19: Venezuela | B19: 53 | C19: =6 -> 6 | D19: 7 | E19: =2+1 -> 3 | F19: 5 | G19: 4 | H19: 5 | I19: 10 | J19: 1 | K19: 3 | L19: 3 | M19: =2+2 -> 4 | N19: 2
A20: Angola | B20: 1 | C20: =1 -> 1 | D20: 0 | E20: 0 | F20: 0 | G20: 0 | H20: 0 | I20: 0 | J20: 0 | K20: 0 | L20: 0 | M20: 0 | N20: 0
A21: Argelia | B21: 1 | C21: 0 | D21: 0 | E21: 0 | F21: 1 | G21: 0 | H21: 0 | I21: 0 | J21: 0 | K21: 0 | L21: 0 | M21: 0 | N21: 0
A22: Argentina | B22: 6 | C22: 0 | D22: 0 | E22: 0 | F22: 1 | G22: 0 | H22: 2 | I22: 0 | J22: 2 | K22: 1 | L22: 0 | M22: 0 | N22: 0
A23: Australia | B23: 3 | C23: 0 | D23: 0 | E23: 0 | F23: 1 | G23: 0 | H23: 0 | I23: 0 | J23: 1 | K23: 0 | L23: 0 | M23: 0 | N23: 1
A24: Austria | B24: 1 | C24: 0 | D24: 0 | E24: 0 | F24: 0 | G24: 0 | H24: 0 | I24: 0 | J24: 0 | K24: 0 | L24: 1 | M24: 0 | N24: 0
A25: Bangladesh | B25: 1 | C25: =1 -> 1 | D25: 0 | E25: 0 | F25: 0 | G25: 0 | H25: 0 | I25: 0 | J25: 0 | K25: 0 | L25: 0 | M25: 0 | N25: 0
A26: Bélgica | B26: 3 | C26: 0 | D26: 0 | E26: 0 | F26: 1 | G26: 0 | H26: 0 | I26: 0 | J26: 2 | K26: 0 | L26: 0 | M26: 0 | N26: 0
A27: Bolivia | B27: 5 | C27: 0 | D27: =3 -> 3 | E27: =1 -> 1 | F27: 0 | G27: 0 | H27: 1 | I27: 0 | J27: 0 | K27: 0 | L27: 0 | M27: 0 | N27: 0
A28: Brasil | B28: 6 | C28: 0 | D28: =1+1 -> 2 | E28: 0 | F28: 0 | G28: 1 | H28: 0 | I28: 0 | J28: 1 | K28: 0 | L28: 2 | M28: 0 | N28: 0
A29: Bulgaria | B29: 1 | C29: =1 -> 1 | D29: 0 | E29: 0 | F29: 0 | G29: 0 | H29: 0 | I29: 0 | J29: 0 | K29: 0 | L29: 0 | M29: 0 | N29: 0
A30: Canadá | B30: 11 | C30: =1+1 -> 2 | D30: =2 -> 2 | E30: 0 | F30: 1 | G30: 1 | H30: 0 | I30: 2 | J30: 1 | K30: 0 | L30: 2 | M30: 0 | N30: 0
A31: Chile | B31: 7 | C31: 0 | D31: =1 -> 1 | E31: 0 | F31: 0 | G31: 1 | H31: 1 | I31: 0 | J31: 1 | K31: 0 | L31: 3 | M31: 0 | N31: 0
A32: Corea | B32: 3 | C32: 0 | D32: 0 | E32: 0 | F32: 0 | G32: 0 | H32: 0 | I32: 1 | J32: 1 | K32: 1 | L32: 0 | M32: 0 | N32: 0
A33: Dinamarca | B33: 1 | C33: 0 | D33: 1 | E33: 0 | F33: 0 | G33: 0 | H33: 0 | I33: 0 | J33: 0 | K33: 0 | L33: 0 | M33: 0 | N33: 0
A34: Dominica | B34: 1 | C34: 0 | D34: 0 | E34: 0 | F34: 0 | G34: 0 | H34: 0 | I34: 0 | J34: 0 | K34: 0 | L34: 1 | M34: 0 | N34: 0
A35: Ecuador | B35: 16 | C35: =4 -> 4 | D35: 0 | E35: =3 -> 3 | F35: 2 | G35: 0 | H35: 0 | I35: 3 | J35: 2 | K35: 0 | L35: 1 | M35: =1 -> 1 | N35: 0
A36: España | B36: 18 | C36: =1+1 -> 2 | D36: 2 | E36: =2 -> 2 | F36: 2 | G36: 4 | H36: 0 | I36: 1 | J36: 1 | K36: 0 | L36: 1 | M36: =3 -> 3 | N36: 0
A37: Filipinas | B37: 8 | C37: =1 -> 1 | D37: 0 | E37: =1 -> 1 | F37: 2 | G37: 2 | H37: 1 | I37: 0 | J37: 0 | K37: 0 | L37: 0 | M37: 0 | N37: 1
A38: Francia | B38: 7 | C38: =1+1 -> 2 | D38: 1 | E38: 0 | F38: 0 | G38: 1 | H38: 0 | I38: 1 | J38: 1 | K38: 0 | L38: 0 | M38: =1 -> 1 | N38: 0
A39: Gran Bretaña | B39: 5 | C39: 0 | D39: 0 | E39: 0 | F39: 0 | G39: 0 | H39: 0 | I39: 2 | J39: 2 | K39: 1 | L39: 0 | M39: 0 | N39: 0
A40: Guatemala | B40: 38 | C40: =3+1 -> 4 | D40: =1+2 -> 3 | E40: =5+1 -> 6 | F40: 4 | G40: 3 | H40: 3 | I40: 3 | J40: 5 | K40: 3 | L40: 1 | M40: =2 -> 2 | N40: 1
A41: Haití | B41: 9 | C41: 0 | D41: 1 | E41: =2 -> 2 | F41: 2 | G41: 0 | H41: 1 | I41: 0 | J41: 1 | K41: 1 | L41: 0 | M41: =1 -> 1 | N41: 0
A42: Holanda | B42: 2 | C42: 0 | D42: 0 | E42: 0 | F42: 0 | G42: 0 | H42: 1 | I42: 1 | J42: 0 | K42: 0 | L42: 0 | M42: 0 | N42: 0
A43: Honduras | B43: 38 | C43: =3 -> 3 | D43: =1+5 -> 6 | E43: =4+3 -> 7 | F43: 2 | G43: 5 | H43: 4 | I43: 7 | J43: 3 | K43: 0 | L43: 0 | M43: =1 -> 1 | N43: 0
A44: Hungría | B44: 1 | C44: 0 | D44: 0 | E44: 0 | F44: 1 | G44: 0 | H44: 0 | I44: 0 | J44: 0 | K44: 0 | L44: 0 | M44: 0 | N44: 0
A45: India | B45: 3 | C45: 0 | D45: 0 | E45: 0 | F45: 0 | G45: 0 | H45: 0 | I45: 0 | J45: 0 | K45: 0 | L45: 1 | M45: =1+1 -> 2 | N45: 0
A46: Inglaterra | B46: 4 | C46: 0 | D46: 0 | E46: 0 | F46: 0 | G46: 1 | H46: 0 | I46: 0 | J46: 0 | K46: 1 | L46: 0 | M46: =1 -> 1 | N46: 1
A47: Irán | B47: 1 | C47: 0 | D47: 0 | E47: 0 | F47: 0 | G47: 1 | H47: 0 | I47: 0 | J47: 0 | K47: 0 | L47: 0 | M47: 0 | N47: 0
A48: Israel | B48: 1 | C48: 0 | D48: 0 | E48: 0 | F48: 0 | G48: 0 | H48: 0 | I48: 0 | J48: 0 | K48: 0 | L48: 1 | M48: 0 | N48: 0
A49: Italia | B49: 11 | C49: 0 | D49: =2 -> 2 | E49: 0 | F49: 3 | G49: 3 | H49: 0 | I49: 0 | J49: 0 | K49: 1 | L49: 1 | M49: =1 -> 1 | N49: 0
A50: Jamaica | B50: 3 | C50: 0 | D50: 0 | E50: =1 -> 1 | F50: 0 | G50: 0 | H50: 0 | I50: 0 | J50: 0 | K50: 0 | L50: 2 | M50: 0 | N50: 0
A51: Jordania | B51: 3 | C51: 0 | D51: =1 -> 1 | E51: 0 | F51: 0 | G51: 0 | H51: 0 | I51: 0 | J51: 0 | K51: 0 | L51: 2 | M51: 0 | N51: 0
A52: Líbano | B52: 2 | C52: 0 | D52: 0 | E52: 0 | F52: 0 | G52: 2 | H52: 0 | I52: 0 | J52: 0 | K52: 0 | L52: 0 | M52: 0 | N52: 0
A53: México | B53: 32 | C53: =2 -> 2 | D53: 2 | E53: =2+2 -> 4 | F53: 8 | G53: 4 | H53: 6 | I53: 2 | J53: 1 | K53: 2 | L53: 1 | M53: 0 | N53: 0
A54: Paquistán | B54: 1 | C54: 0 | D54: 0 | E54: 0 | F54: 0 | G54: 0 | H54: 0 | I54: 0 | J54: 1 | K54: 0 | L54: 0 | M54: 0 | N54: 0
A55: Paraguay | B55: 1 | C55: 0 | D55: 0 | E55: 0 | F55: 0 | G55: 0 | H55: 0 | I55: 0 | J55: 0 | K55: 1 | L55: 0 | M55: 0 | N55: 0
A56: Polonia | B56: 4 | C56: 0 | D56: 0 | E56: 0 | F56: 1 | G56: 0 | H56: 0 | I56: 2 | J56: 0 | K56: 0 | L56: 1 | M56: 0 | N56: 0
A57: Rumanía | B57: 1 | C57: 0 | D57: 0 | E57: 0 | F57: 0 | G57: 0 | H57: 0 | I57: 0 | J57: 0 | K57: 0 | L57: 1 | M57: 0 | N57: 0
A58: Rusia | B58: 6 | C58: =1 -> 1 | D58: =1 -> 1 | E58: 0 | F58: 0 | G58: 1 | H58: 0 | I58: 1 | J58: 0 | K58: 1 | L58: 0 | M58: =1 -> 1 | N58: 0
A59: Sudán | B59: 1 | C59: 0 | D59: 0 | E59: 0 | F59: 0 | G59: 0 | H59: 0 | I59: 0 | J59: 0 | K59: 1 | L59: 0 | M59: 0 | N59: 0
A60: Suecia | B60: 2 | C60: 0 | D60: 0 | E60: 0 | F60: 0 | G60: 2 | H60: 0 | I60: 0 | J60: 0 | K60: 0 | L60: 0 | M60: 0 | N60: 0
A61: Suiza | B61: 3 | C61: 0 | D61: 0 | E61: 0 | F61: 1 | G61: 0 | H61: 0 | I61: 1 | J61: 0 | K61: 0 | L61: 1 | M61: 0 | N61: 0
A62: Tailandia | B62: 1 | C62: 0 | D62: 0 | E62: 0 | F62: 0 | G62: 1 | H62: 0 | I62: 0 | J62: 0 | K62: 0 | L62: 0 | M62: 0 | N62: 0
A63: Taiwán | B63: 11 | C63: 0 | D63: 0 | E63: =1 -> 1 | F63: 0 | G63: 0 | H63: 0 | I63: 4 | J63: 2 | K63: 0 | L63: 0 | M63: =2 -> 2 | N63: 2
A64: Trinidad y Tobago | B64: 1 | C64: 0 | D64: 1 | E64: 0 | F64: 0 | G64: 0 | H64: 0 | I64: 0 | J64: 0 | K64: 0 | L64: 0 | M64: 0 | N64: 0
A65: Ucrania | B65: 6 | C65: =1 -> 1 | D65: 0 | E65: 0 | F65: 0 | G65: 0 | H65: 0 | I65: 2 | J65: 1 | K65: 0 | L65: 1 | M65: =1 -> 1 | N65: 0
A66: Uruguay | B66: 5 | C66: 0 | D66: 0 | E66: 0 | F66: 0 | G66: 2 | H66: 1 | I66: 2 | J66: 0 | K66: 0 | L66: 0 | M66: 0 | N66: 0
A69: FUENTE: Sección de Opciones y Naturalizaciones del Tribunal Supremo de Elecciones.

Sheet 18
A1: CUADRO 18
A2: COSTA RICA: INGRESO DE SOLICITUDES DE DETERMINACIÓN DE PATERNIDAD
A3: POR PROVINCIA, SEGÚN MES, AL 31 DE DICIEMBRE DE 2013
A5: Mes | B5: Total | C5: San José | D5: Alajuela | E5: Cartago | F5: Heredia | G5: Guanacaste | H5: Puntarenas | I5: Limón
A7: Total | B7: =SUM(B9:B20) -> 5919 | C7: =SUM(C9:C20) -> 2100 | D7: 882 | E7: 399 | F7: 329 | G7: 614 | H7: 624 | I7: 971
A9: Enero | B9: =SUM(C9:I9) -> 531 | C9: 171 | D9: 84 | E9: 32 | F9: 38 | G9: 46 | H9: 43 | I9: 117
A10: Febrero | B10: =SUM(C10:I10) -> 577 | C10: 161 | D10: 106 | E10: 51 | F10: 30 | G10: 58 | H10: 78 | I10: 93
A11: Marzo | B11: =SUM(C11:I11) -> 370 | C11: 126 | D11: 71 | E11: 29 | F11: 20 | G11: 38 | H11: 29 | I11: 57
A12: Abril | B12: =SUM(C12:I12) -> 444 | C12: 206 | D12: 73 | E12: 29 | F12: 23 | G12: 33 | H12: 35 | I12: 45
A13: Mayo | B13: =SUM(C13:I13) -> 496 | C13: 131 | D13: 84 | E13: 34 | F13: 16 | G13: 51 | H13: 60 | I13: 120
A14: Junio | B14: 583 | C14: 206 | D14: 0 | E14: 53 | F14: 40 | G14: 89 | H14: 85 | I14: 110
A15: Julio | B15: 389 | C15: 179 | D15: 53 | E15: 15 | F15: 25 | G15: 34 | H15: 39 | I15: 44
A16: Agosto | B16: 391 | C16: 133 | D16: 68 | E16: 29 | F16: 24 | G16: 40 | H16: 36 | I16: 61
A17: Setiembre | B17: 582 | C17: 250 | D17: 83 | E17: 31 | F17: 22 | G17: 62 | H17: 58 | I17: 76
A18: Octubre | B18: 915 | C18: 329 | D18: 145 | E18: 47 | F18: 51 | G18: 96 | H18: 99 | I18: 148
A19: Noviembre | B19: 423 | C19: 122 | D19: 79 | E19: 30 | F19: 36 | G19: 52 | H19: 40 | I19: 64
A20: Diciembre | B20: 218 | C20: 86 | D20: 36 | E20: 19 | F20: 4 | G20: 15 | H20: 22 | I20: 36
A23: Fuente: Sección de Inscripciones del Tribunal Supremo de Elecciones.

Sheet 19
A2: CUADRO 19
A3: COSTA RICA: INGRESO DE SOLICITUDES DE DETERMINACIÓN DE PATERNIDAD, POR MES
A4: SEGÚN NACIONALIDAD DE LOS PADRES, AL 31 DE DICIEMBRE DE 2013
A6: NACIONALIDAD | B6: TOTAL | C6: ENE | D6: FEB | E6: MAR | F6: ABR | G6: MAY | H6: JUN | I6: JUL | J6: AGO | K6: SET | L6: OCT | M6: NOV | N6: DIC
A9: TOTAL | B9: =B12+B16+B20+B24+B28+B32 -> 6072 | C9: =C12+C16+C20+C24+C28+C32 -> 531 | D9: =D12+D16+D20+D24+D28+D32 -> 577 | E9: 370 | F9: 445 | G9: 496 | H9: 732 | I9: =I12+I16+I20+I24+I28+I32 -> 391 | J9: 391 | K9: 582 | L9: 915 | M9: 423 | N9: 219
A11: Costa Rica
A12: Presunto padre | B12: =SUM(C12:N12) -> 5315 | C12: 469 | D12: 504 | E12: 325 | F12: 386 | G12: 438 | H12: 645 | I12: 341 | J12: 349 | K12: 493 | L12: 808 | M12: 359 | N12: 198
A13: Madre | B13: =SUM(C13:N13) -> 5391 | C13: 482 | D13: 520 | E13: 331 | F13: 397 | G13: 454 | H13: 654 | I13: 335 | J13: 338 | K13: 499 | L13: 807 | M13: 377 | N13: 197
A15: Nicaragua
A16: Presunto padre | B16: =SUM(C16:N16) -> 659 | C16: 51 | D16: 65 | E16: 38 | F16: 52 | G16: 51 | H16: 77 | I16: 45 | J16: 34 | K16: 78 | L16: 93 | M16: 58 | N16: 17
A17: Madre | B17: =SUM(C17:N17) -> 654 | C17: 46 | D17: 56 | E17: 35 | F17: 47 | G17: 40 | H17: 74 | I17: 55 | J17: 50 | K17: 82 | L17: 105 | M17: 44 | N17: 20
A19: Colombia
A20: Presunto padre | B20: =SUM(C20:N20) -> 15 | C20: 1 | D20: 1 | E20: 0 | F20: 1 | G20: 1 | H20: 0 | I20: 2 | J20: 2 | K20: 3 | L20: 3 | M20: 0 | N20: 1
A21: Madre | B21: =SUM(C21:N21) -> 0 | C21: 0 | D21: 0 | E21: 0 | F21: 0 | G21: 0 | H21: 0 | I21: 0 | J21: 0 | K21: 0 | L21: 0 | M21: 0 | N21: 0
A23: Panamá
A24: Presunto padre | B24: =SUM(C24:N24) -> 13 | C24: 2 | D24: =1 -> 1 | E24: 0 | F24: 3 | G24: 2 | H24: 2 | I24: 0 | J24: 1 | K24: 1 | L24: 0 | M24: 1 | N24: 0
A25: Madre | B25: =SUM(C25:N25) -> 5 | C25: 0 | D25: =0 -> 0 | E25: 1 | F25: 0 | G25: 0 | H25: 3 | I25: 1 | J25: 0 | K25: 0 | L25: 0 | M25: 0 | N25: 0
A27: Otros
A28: Presunto padre | B28: =SUM(C28:N28) -> 27 | C28: =1+1 -> 2 | D28: =1+1+1+1+2 -> 6 | E28: =1+3+1+1 -> 6 | F28: 1 | G28: 2 | H28: 2 | I28: 2 | J28: 0 | K28: 0 | L28: 0 | M28: 5 | N28: 1
A29: Madre | B29: =SUM(C29:N29) -> 10 | C29: =0+0 -> 0 | D29: =0+1 -> 1 | E29: =2+1+0+0 -> 3 | F29: 0 | G29: 0 | H29: 0 | I29: 0 | J29: 3 | K29: 1 | L29: 1 | M29: 1 | N29: 0
A31: No Indica
A32: Presunto padre | B32: =SUM(C32:N32) -> 43 | C32: 6 | D32: 0 | E32: 1 | F32: 2 | G32: 2 | H32: 6 | I32: 1 | J32: 5 | K32: 7 | L32: 11 | M32: 0 | N32: 2
A33: Madre | B33: =SUM(C33:N33) -> 12 | C33: 3 | D33: 0 | E33: 0 | F33: 1 | G33: 2 | H33: 1 | I33: 0 | J33: 0 | K33: 0 | L33: 2 | M33: 1 | N33: 2
A36: Fuente: Sección de Inscripciones del Tribunal Supremo de Elecciones.

Sheet 20
A1: CUADRO 20
A2: COSTA RICA: RESULTADO DE PRUEBAS DE ADN PARA
A3: DETERMINAR LA PATERNIDAD, SEGÚN MES
A4: AL 31 DE DICIEMBRE DE 2013
A6: Mes | B6: Total | D6: Absoluto | I6: Porcentaje
D7: Positivo | F7: Negativo | I7: Positivo | K7: Negativo
A9: Total | B9: =SUM(B11:B22) -> 3043 | D9: =SUM(D11:D22) -> 2353 | F9: =SUM(F11:F22) -> 690 | I9: =+D9/B9*100 -> 77.32500822 | K9: =+F9/B9*100 -> 22.67499178
A11: Enero | B11: =SUM(D11:F11) -> 193 | D11: 144 | F11: 49 | I11: =+D11/B11*100 -> 74.61139896 | K11: =+F11/B11*100 -> 25.38860104
A12: Febrero | B12: =SUM(D12:F12) -> 261 | D12: 222 | F12: 39 | I12: =+D12/B12*100 -> 85.05747126 | K12: =+F12/B12*100 -> 14.94252874
A13: Marzo | B13: 167 | D13: 127 | F13: 40 | I13: 76.04790419 | K13: 23.95209581
A14: Abril | B14: 297 | D14: 217 | F14: 80 | I14: 73.06397306 | K14: 26.93602694
A15: Mayo | B15: 153 | D15: 138 | F15: 15 | I15: 90.19607843 | K15: 9.803921569
A16: Junio | B16: 397 | D16: 300 | F16: 97 | I16: 75.56675063 | K16: 24.43324937
A17: Julio | B17: 246 | D17: 177 | F17: 69 | I17: 71.95121951 | K17: 28.04878049
A18: Agosto | B18: 310 | D18: 240 | F18: 70 | I18: 77.41935484 | K18: 22.58064516
A19: Setiembre | B19: 310 | D19: 231 | F19: 79 | I19: 74.51612903 | K19: 25.48387097
A20: Octubre | B20: 273 | D20: 197 | F20: 76 | I20: 72.16117216 | K20: 27.83882784
A21: Noviembre | B21: 264 | D21: 227 | F21: 37 | I21: 85.98484848 | K21: 14.01515152
A22: Diciembre | B22: 172 | D22: 133 | F22: 39 | I22: 77.3255814 | K22: 22.6744186
A25: Fuente: Sección de Inscripciones del Tribunal Supremo de Elecciones.

Sheet 21
A1: CUADRO 21
A2: COSTA RICA: CANTIDAD DE RESOLUCIONES, POR TIPO DE RESOLUCIÓN, SEGÚN MES
A3: AL 31 DE DICIEMBRE DE 2013
A5: Mes | B5: Total | C5: Tipo de resolución
C6: Electorales | D6: Inscripciones | E6: Municipales | F6: Naturalizaciones | G6: Ocursos y Paternidad | H6: Procedimientos Administrativos
A8: Total | B8: =SUM(C8:H8) -> 5597 | C8: =SUM(C10:C21) -> 345 | D8: 866 | E8: 101 | F8: 3944 | G8: 124 | H8: 217
A10: Enero | B10: =SUM(C10:H10) -> 570 | C10: 18 | D10: 76 | E10: 8 | F10: 444 | G10: 7 | H10: 17
A11: Febrero | B11: 553 | C11: 23 | D11: 101 | E11: 10 | F11: 397 | G11: 5 | H11: 17
A12: Marzo | B12: 626 | C12: 27 | D12: 65 | E12: 5 | F12: 500 | G12: 9 | H12: 20
A13: Abril | B13: 442 | C13: 17 | D13: 77 | E13: 15 | F13: 313 | G13: 9 | H13: 11
A14: Mayo | B14: 532 | C14: 26 | D14: 133 | E14: 8 | F14: 336 | G14: 12 | H14: 17
A15: Junio | B15: 333 | C15: 44 | D15: 31 | E15: 3 | F15: 236 | G15: 6 | H15: 13
A16: Julio | B16: 487 | C16: 39 | D16: 96 | E16: 11 | F16: 302 | G16: 9 | H16: 30
A17: Agosto | B17: 318 | C17: 24 | D17: 4 | E17: 5 | F17: 214 | G17: 44 | H17: 27
A18: Setiembre | B18: 539 | C18: 27 | D18: 89 | E18: 12 | F18: 384 | G18: 6 | H18: 21
A19: Octubre | B19: 403 | C19: 39 | D19: 23 | E19: 12 | F19: 313 | G19: 8 | H19: 8
A20: Noviembre | B20: 441 | C20: 30 | D20: 117 | E20: 7 | F20: 263 | G20: 5 | H20: 19
A21: Diciembre | B21: 353 | C21: 31 | D21: 54 | E21: 5 | F21: 242 | G21: 4 | H21: 17
A24: Fuente: Secretaría del Tribunal Supremo de Elecciones.

Sheet 22
A1: CUADRO 22
A2: COSTA RICA: CANTIDAD DE RESOLUCIONES ELECTORALES
A3: POR ACCIÓN TRAMITADA, SEGÚN MES
A4: AL 31 DE DICIEMBRE DE 2013
A6: Mes | B6: Total | C6: Acción Tramitada
B7: Total | C7: Financiamiento de Partidos Políticos | D7: Hermenéutica Electoral | E7: Amparo Electoral | F7: Denuncia beligerancia o participación política prohibida | G7: Democracia semidirecta | H7: Apelación electoral | I7: Acción de nulidad | J7: Otros asuntos electorales
A9: Total | B9: =SUM(B11:B22) -> 346 | C9: 29 | D9: 72 | E9: 144 | F9: 16 | G9: 9 | H9: 40 | I9: 27 | J9: 9
A11: Enero | B11: =SUM(C11:J11) -> 18 | C11: 1 | D11: 3 | E11: 8 | F11: 0 | G11: 2 | H11: 2 | I11: 2 | J11: 0
A12: Febrero | B12: =SUM(C12:J12) -> 23 | C12: 4 | D12: 2 | E12: 7 | F12: 0 | G12: 1 | H12: 4 | I12: 5 | J12: 0
A13: Marzo | B13: 27 | C13: 2 | D13: 5 | E13: 12 | F13: 2 | G13: 1 | H13: 4 | I13: 1 | J13: 0
A14: Abril | B14: 17 | C14: 1 | D14: 2 | E14: 5 | F14: 2 | G14: 1 | H14: 3 | I14: 3 | J14: 0
A15: Mayo | B15: 26 | C15: 1 | D15: 1 | E15: 15 | F15: 1 | G15: 0 | H15: 2 | I15: 5 | J15: 1
A16: Junio | B16: 44 | C16: 2 | D16: 6 | E16: 32 | F16: 2 | G16: 0 | H16: 0 | I16: 2 | J16: 0
A17: Julio | B17: 39 | C17: 4 | D17: 6 | E17: 21 | F17: 2 | G17: 1 | H17: 3 | I17: 1 | J17: 1
A18: Agosto | B18: 24 | C18: 1 | D18: 1 | E18: 16 | F18: 0 | G18: 1 | H18: 2 | I18: 1 | J18: 2
A19: Setiembre | B19: 27 | C19: 1 | D19: 12 | E19: 6 | F19: 2 | G19: 0 | H19: 5 | I19: 0 | J19: 1
A20: Octubre | B20: 40 | C20: 3 | D20: 15 | E20: 13 | F20: 2 | G20: 1 | H20: 3 | I20: 2 | J20: 1
A21: Noviembre | B21: 30 | C21: 0 | D21: 12 | E21: 5 | F21: 2 | G21: 1 | H21: 6 | I21: 3 | J21: 1
A22: Diciembre | B22: 31 | C22: 9 | D22: 7 | E22: 4 | F22: 1 | G22: 0 | H22: 6 | I22: 2 | J22: 2
A25: Fuente: Secretaría del Tribunal Supremo de Elecciones.
A28: Información generada por Eladio.

Sheet 23
A1: CUADRO 23
A2: COSTA RICA: CANTIDAD DE RESOLUCIONES MUNICIPALES
A3: POR RESULTADO DE LA GESTIÓN, SEGÚN MES
A4: AL 31 DE DICIEMBRE DE 2013
A6: Mes | B6: Total | C6: Resultado de la Gestión
B7: Total | C7: Con lugar | D7: Rechazo de plano | E7: Sin lugar | F7: Revoca parcialmente resolución | G7: Archivo | H7: Confidencial
A9: Total | B9: =SUM(B11:B22) -> 101 | C9: 71 | D9: 14 | E9: 5 | F9: 1 | G9: 9 | H9: 1
A11: Enero | B11: =SUM(C11:H11) -> 8 | C11: 5 | D11: 1 | E11: 2 | F11: 0 | G11: 0 | H11: 0
A12: Febrero | B12: =SUM(C12:H12) -> 10 | C12: 4 | D12: 5 | E12: 0 | F12: 1 | G12: 0 | H12: 0
A13: Marzo | B13: 5 | C13: 3 | D13: 2 | E13: 0 | F13: 0 | G13: 0 | H13: 0
A14: Abril | B14: 15 | C14: 13 | D14: 1 | E14: 0 | F14: 0 | G14: 1 | H14: 0
A15: Mayo | B15: 8 | C15: 6 | D15: 0 | E15: 0 | F15: 0 | G15: 2 | H15: 0
A16: Junio | B16: 3 | C16: 1 | D16: 1 | E16: 0 | F16: 0 | G16: 1 | H16: 0
A17: Julio | B17: 11 | C17: 10 | D17: 0 | E17: 0 | F17: 0 | G17: 1 | H17: 0
A18: Agosto | B18: 5 | C18: 2 | D18: 0 | E18: 0 | F18: 0 | G18: 3 | H18: 0
A19: Setiembre | B19: 12 | C19: 10 | D19: 1 | E19: 0 | F19: 0 | G19: 1 | H19: 0
A20: Octubre | B20: 12 | C20: 10 | D20: 0 | E20: 1 | F20: 0 | G20: 0 | H20: 1
A21: Noviembre | B21: 7 | C21: 4 | D21: 2 | E21: 1 | F21: 0 | G21: 0 | H21: 0
A22: Diciembre | B22: 5 | C22: 3 | D22: 1 | E22: 1 | F22: 0 | G22: 0 | H22: 0
A25: Fuente: Secretaría del Tribunal Supremo de Elecciones.

Sheet 24
A1: CUADRO 24
A3: COSTA RICA: DONACIONES REPORTADAS PARA EL PROCESO ELECTORAL 2010-20141/
A4: SEGÚN PARTIDO POLÍTICO 2/, AL 31 DE DICIEMBRE DE 2013
A6: PARTIDO POLÍTICO | B6: MONTO EN COLONES | C6: PORCENTAJE
A9: TOTAL | B9: =SUM(B11:B51) -> 1641343093 | C9: =SUM(C11:C51) -> 100
A11: ACCESIBILIDAD SIN EXCLUSIÓN | B11: 7670000 | C11: =B11/$B$9*100 -> 0.4673002271
A12: ACCIÓN CANTONAL SIQUIRRES INDEPENDIENTE | B12: 616000 | C12: =B12/$B$9*100 -> 0.03753023988
A13: ACCIÓN CIUDADANA | B13: 117280791.6 | C13: 7.145415978
A14: ACCIÓN NARANJEÑA | B14: 48000 | C14: 0.002924434277
A15: ACCIÓN QUEPEÑA | B15: 220000 | C15: 0.0134036571
A16: ACUERDO CANTONAL DESAMPARADEÑO | B16: 4263500 | C16: 0.2597567821
A17: ALIANZA PATRIOTICA | B17: 255000 | C17: 0.01553605709
A18: ALIANZA ZARCEREÑA | B18: 50000 | C18: 0.003046285705
A19: AUTÓNOMO OROMONTANO | B19: 795000 | C19: 0.04843594271
A20: BARVA UNIDA (COALICIÓN) | B20: 500000 | C20: 0.03046285705
A21: CARTAGO UNIDO (COALICIÓN) | B21: 2022000 | C21: 0.1231917939
A22: CÍVICO TIBÁS FUENTEOVEJUNA | B22: 370000 | C22: 0.02254251422
A23: CURRIDABAT SIGLO XXI | B23: 2816050 | C23: 0.1715698572
A24: DE LOS TRANSPORTISTAS | B24: 3402500 | C24: 0.2072997422
A25: DEL SOL | B25: 8142809.35 | C25: 0.4961064744
A26: EL PUENTE Y LOS CAMINOS DE MORA | B26: 2283140 | C26: 0.1391019349
A27: FRENTE AMPLIO | B27: 169132282.7 | C27: 10.3045051
A28: GOICOCHEA EN ACCIÓN | B28: 1426000 | C28: 0.0868800683
A29: INDEPENDIENTE BELEMITA | B29: 2987000 | C29: 0.181985108
A30: INTEGRACIÓN BARBAREÑA | B30: 707222.45 | C30: 0.04308803279
A31: INTEGRACIÓN NACIONAL | B31: 59320000 | C31: 3.61411336
A32: LIBERACIÓN NACIONAL | B32: 558811659.8 | C32: 34.04599942
A33: MONTES DE OCA UNIDA (COALICIÓN) | B33: 864000 | C33: 0.05263981698
A34: MOVIMIENTO AVANCE SANTO DOMINGO | B34: 9471818.4 | C34: 0.5770772998
A35: MOVIMIENTO DE TRABAJADORES Y CAMPESINOS | B35: 2608584.05 | C35: 0.158929846
A36: MOVIMIENTO LIBERTARIO | B36: 297213840.8 | C36: 18.10796549
A37: NUEVA GENERACIÓN | B37: 4544066.75 | C37: 0.2768505116
A38: ORGANIZACIÓN LABORISTA DE AGUIRRE | B38: 367000 | C38: 0.02235973707
A39: PATRIA NUEVA | B39: 4477100 | C39: 0.2727705146
A40: RAMONENSE (COALICIÓN) | B40: 30000 | C40: 0.001827771423
A41: RENOVACIÓN COSTARRICENSE | B41: 46350245 | C41: 2.823921775
A42: RENOVEMOS ALAJUELA | B42: 677000 | C42: 0.04124670844
A43: RESTAURACIÓN NACIONAL | B43: 19719810 | C43: 1.201443506
A44: ÚNICO ABANGAREÑO | B44: 100000 | C44: 0.00609257141
A45: UNIDAD SOCIAL CRISTIANA | B45: 289548364.1 | C45: 17.64094085
A46: UNIDOS POR SAN CARLOS (COALICIÓN) | B46: 1719000 | C46: 0.1047313025
A47: UNIÓN ATENIENSE | B47: 165000 | C47: 0.01005274283
A48: UNIÓN PALMAREÑA | B48: 1509427.77 | C48: 0.09196296476
A49: VERDE | B49: 1050000 | C49: 0.0639719998
A50: VIVA PUNTARENAS | B50: 50000 | C50: 0.003046285705
A51: YUNTA PROGRESISTA ESCAZUCEÑA | B51: 17758880 | C51: 1.081972446
A54: 1/ Total de Donaciones reportadas por los partidos políticos de marzo 2010 a diciembre 2013. Con corte al 24-01-2013.
A56: 2/ Los siguientes Partidos Políticos reportaron no haber recibido donaciones durante el período: Acción Naranjeña, Acción Quepeña, Acuerdo Cantonal Desamparadeño, Alianza por San José, Avance Montes de Oca, Avance Nacional, Civíco de Tibás Fuenteovejuna, Humanista de Montes de Oca, Independiente Belemita, Integración Barbareña, Nuevo Partido Socialista, Patria Igualdad y Democracia (San José), Renovemos Alajuela, Unión Agrícola Cartaginés, Unión Ateniense.
A58: Nota: El detalle de los contribuyentes se puede consultar en www.tse.go.cr
A60: Fuente: Departamento de Financiamiento de Partidos Políticos.
